Workbook

Sheet Lift Results
G1: =IF(ISBLANK(A1),"",F1*2.2046) ->  | I1: =IF(ISBLANK(A1),"",H1*2.2046) ->  | K1: =IF(ISBLANK(A1),"",J1*2.2046) ->  | L1: =IF(ISBLANK(A1),"",F1+H1+J1) ->  | M1: =IF(ISBLANK(A1),"",L1*2.2046) ->  | N1: =IF(ISBLANK(A1),"",L1*O1*P1) ->  | O1: =IF(ISNUMBER(B1),VLOOKUP(B1,af,2),"") ->  | P1: =IF(ISNUMBER(C1),IF(LEFT(E1,1)="M",VLOOKUP(C1,mwf,2),VLOOKUP(C1,wwf,2)),"") -> 
C2: BWT | D2: BWT | E2: Division | F2: Squat | G2: Squat | H2: Bench | I2: Bench | J2: Dead | K2: Dead | L2: Total | M2: Total | N2: Coef. | O2: Age Fctr | P2: WgtFctr | Q2: Placement
A3: Lifter's Name | B3: Age | C3: (kgs.) | D3: (lbs.) | E3: Format must begin M- or F- | F3: (kgs.) | G3: (lbs.) | H3: (kgs.) | I3: (lbs.) | J3: (kgs.) | K3: (lbs.) | L3: (kgs.) | M3: (lbs.) | O3: =IF(ISNUMBER(B3),VLOOKUP(B3,af,2),"") ->  | P3: =IF(ISNUMBER(C3),IF(LEFT(E3,1)="M",VLOOKUP(C3,mwf,2),VLOOKUP(C3,wwf,2)),"") ->  | Q3: Other comments
G4: =IF(ISBLANK(A4),"",F4*2.2046) ->  | I4: =IF(ISBLANK(A4),"",H4*2.2046) ->  | K4: =IF(ISBLANK(A4),"",J4*2.2046) ->  | L4: =IF(ISBLANK(A4),"",F4+H4+J4) ->  | M4: =IF(ISBLANK(A4),"",L4*2.2046) ->  | N4: =IF(ISBLANK(A4),"",L4*O4*P4) ->  | O4: =IF(ISNUMBER(B4),VLOOKUP(B4,af,2),"") ->  | P4: =IF(ISNUMBER(C4),IF(LEFT(E4,1)="M",VLOOKUP(C4,mwf,2),VLOOKUP(C4,wwf,2)),"") -> 
A5: Powerlifting: Raw Division
A6: Women | D6: =IF(ISBLANK(A6),"",C6*2.2046) -> 0 | G6: =IF(ISBLANK(A6),"",F6*2.2046) -> 0 | I6: =IF(ISBLANK(A6),"",H6*2.2046) -> 0 | K6: =IF(ISBLANK(A6),"",J6*2.2046) -> 0 | L6: =IF(ISBLANK(A6),"",F6+H6+J6) -> 0 | M6: =IF(ISBLANK(A6),"",L6*2.2046) -> 0 | N6: =IF(ISBLANK(A6),"",L6*O6*P6) ->  | O6: =IF(ISNUMBER(B6),VLOOKUP(B6,af,2),"") ->  | P6: =IF(ISNUMBER(C6),IF(LEFT(E6,1)="M",VLOOKUP(C6,mwf,2),VLOOKUP(C6,wwf,2)),"") -> 
A7: 56.0kg/123.4lb Teen T3 (18-19) Women Raw APF | D7: =IF(ISBLANK(A7),"",C7*2.2046) -> 0 | G7: =IF(ISBLANK(A7),"",F7*2.2046) -> 0 | I7: =IF(ISBLANK(A7),"",H7*2.2046) -> 0 | K7: =IF(ISBLANK(A7),"",J7*2.2046) -> 0 | L7: =IF(ISBLANK(A7),"",F7+H7+J7) -> 0 | M7: =IF(ISBLANK(A7),"",L7*2.2046) -> 0 | N7: =IF(ISBLANK(A7),"",L7*O7*P7) ->  | O7: =IF(ISNUMBER(B7),VLOOKUP(B7,af,2),"") ->  | P7: =IF(ISNUMBER(C7),IF(LEFT(E7,1)="M",VLOOKUP(C7,mwf,2),VLOOKUP(C7,wwf,2)),"") -> 
A8: Bethany Barrett | B8: 19 | C8: 52.4 | D8: 115.52104 | E8: F-RT3 | F8: 65 | G8: 143.299 | H8: 50 | I8: 110.23 | K8: 0 | L8: 115 | M8: 253.529 | N8: 251.8454 | O8: 1.06 | P8: 2.066 | Q8: DQ (Deadlift)
A10: 67.5kg/148.8lb Teen T3 (18-19) Women Raw AAPF | D10: 0 | G10: 0 | I10: 0 | K10: 0 | L10: 0 | M10: 0
A11: Alyssa Kroll | B11: 19 | C11: 63.4 | D11: 139.77164 | E11: F-RT3 | F11: 85 | G11: 187.391 | H11: 80 | I11: 176.368 | J11: 125 | K11: 275.575 | L11: 290 | M11: 639.334 | N11: 525.9614 | O11: 1.06 | P11: 1.711
A13: 52.0kg/114.6lb Junior (20-23) Women Raw AAPF | D13: 0 | G13: 0 | I13: 0 | K13: 0 | L13: 0 | M13: 0
A14: Collette Smith | B14: 22 | C14: 51.4 | D14: 113.31644 | E14: F-RJR | F14: 75 | G14: 165.345 | H14: 52.5 | I14: 115.7415 | J14: 120 | K14: 264.552 | L14: 247.5 | M14: 545.6385 | N14: 529.697025 | O14: 1.01 | P14: 2.119
A16: 75.0kg/165.4lb Junior (20-23) Women Raw APF | D16: 0 | G16: 0 | I16: 0 | K16: 0 | L16: 0 | M16: 0
A17: Katelyn Prawitt | B17: 23 | C17: 71.8 | D17: 158.29028 | E17: F-RJR | F17: 100 | G17: 220.46 | H17: 60 | I17: 132.276 | J17: 137.5 | K17: 303.1325 | L17: 297.5 | M17: 655.8685 | N17: 470.9425 | O17: 1 | P17: 1.583
A19: 52.0kg/114.6lb Open Women Raw AAPF | D19: 0 | G19: 0 | I19: 0 | K19: 0 | L19: 0 | M19: 0
A20: Collette Smith | B20: 30 | C20: 51.4 | D20: 113.31644 | E20: F-RO | F20: 75 | G20: 165.345 | H20: 52.5 | I20: 115.7415 | J20: 120 | K20: 264.552 | L20: 247.5 | M20: 545.6385 | N20: 524.4525 | O20: 1 | P20: 2.119
A22: 56.0kg/123.4lb Open Women Raw APF | D22: 0 | G22: 0 | I22: 0 | K22: 0 | L22: 0 | M22: 0
A23: Kasey Smith | B23: 26 | C23: 55 | D23: 121.253 | E23: F-RO | F23: 95 | G23: 209.437 | H23: 75 | I23: 165.345 | J23: 140 | K23: 308.644 | L23: 310 | M23: 683.426 | N23: 602.02 | O23: 1 | P23: 1.942
A25: 67.5kg/148.8lb Open Women Raw AAPF | D25: 0 | G25: 0 | I25: 0 | K25: 0 | L25: 0 | M25: 0
A26: Daniela Des Islets | B26: 26 | C26: 63 | D26: 138.8898 | E26: F-RO | F26: 100 | G26: 220.46 | H26: 60 | I26: 132.276 | J26: 115 | K26: 253.529 | L26: 275 | M26: 606.265 | N26: 471.625 | O26: 1 | P26: 1.715 | Q26: Second Place
A27: Heather Otto | B27: 35 | C27: 64.6 | D27: 142.41716 | E27: F-RO | F27: 85 | G27: 187.391 | H27: 67.5 | I27: 148.8105 | J27: 127.5 | K27: 281.0865 | L27: 280 | M27: 617.288 | N27: 473.2 | O27: 1 | P27: 1.69 | Q27: First Place
A29: 82.5kg/181.8lb Open Women Raw APF | D29: 0 | G29: 0 | I29: 0 | K29: 0 | L29: 0 | M29: 0
A30: Heidi Saavedra | B30: 34 | C30: 79.6 | D30: 175.48616 | E30: F-RO | F30: 112.5 | G30: 248.0175 | H30: 70 | I30: 154.322 | J30: 145 | K30: 319.667 | L30: 327.5 | M30: 722.0065 | N30: 491.5775 | O30: 1 | P30: 1.501 | Q30: Second Place
A31: Jamie Toone | B31: 26 | C31: 81.2 | D31: 179.01352 | E31: F-RO | F31: 77.5 | G31: 170.8565 | H31: 77.5 | I31: 170.8565 | J31: 107.5 | K31: 236.9945 | L31: 262.5 | M31: 578.7075 | N31: 390.6 | O31: 1 | P31: 1.488 | Q31: Third Place
A32: Taylor Porter | B32: 30 | C32: 80 | D32: 176.368 | E32: F-RO | F32: 152.5 | G32: 336.2015 | H32: 80 | I32: 176.368 | J32: 147.5 | K32: 325.1785 | L32: 380 | M32: 837.748 | N32: 568.86 | O32: 1 | P32: 1.497 | Q32: First Place
A34: Men | D34: =IF(ISBLANK(A34),"",C34*2.2046) -> 0 | G34: =IF(ISBLANK(A34),"",F34*2.2046) -> 0 | I34: =IF(ISBLANK(A34),"",H34*2.2046) -> 0 | K34: =IF(ISBLANK(A34),"",J34*2.2046) -> 0 | L34: =IF(ISBLANK(A34),"",F34+H34+J34) -> 0 | M34: =IF(ISBLANK(A34),"",L34*2.2046) -> 0 | N34: =IF(ISBLANK(A34),"",L34*O34*P34) ->  | O34: =IF(ISNUMBER(B34),VLOOKUP(B34,af,2),"") ->  | P34: =IF(ISNUMBER(C34),IF(LEFT(E34,1)="M",VLOOKUP(C34,mwf,2),VLOOKUP(C34,wwf,2)),"") -> 
A35: 67.5kg/148.8lb Teen T3 (18-19) Men Raw AAPF | D35: =IF(ISBLANK(A35),"",C35*2.2046) -> 0 | G35: =IF(ISBLANK(A35),"",F35*2.2046) -> 0 | I35: =IF(ISBLANK(A35),"",H35*2.2046) -> 0 | K35: =IF(ISBLANK(A35),"",J35*2.2046) -> 0 | L35: =IF(ISBLANK(A35),"",F35+H35+J35) -> 0 | M35: =IF(ISBLANK(A35),"",L35*2.2046) -> 0 | N35: =IF(ISBLANK(A35),"",L35*O35*P35) ->  | O35: =IF(ISNUMBER(B35),VLOOKUP(B35,af,2),"") ->  | P35: =IF(ISNUMBER(C35),IF(LEFT(E35,1)="M",VLOOKUP(C35,mwf,2),VLOOKUP(C35,wwf,2)),"") -> 
A36: Joshua LaRe | B36: 19 | C36: 66.3 | D36: 146.16498 | E36: M-RT3 | F36: 135 | G36: 297.621 | H36: 100 | I36: 220.46 | J36: 195 | K36: 429.897 | L36: 430 | M36: 947.978 | N36: 575.6754 | O36: 1.06 | P36: 1.263
A38: 82.5kg/181.8lb Junior (20-23) Men Raw AAPF | D38: 0 | G38: 0 | I38: 0 | K38: 0 | L38: 0 | M38: 0
A39: Joseph Harbold | B39: 21 | C39: 80.3 | D39: 177.02938 | E39: M-RJR | F39: 172.5 | G39: 380.2935 | H39: 105 | I39: 231.483 | J39: 260 | K39: 573.196 | L39: 537.5 | M39: 1184.9725 | N39: 576.21075 | O39: 1.02 | P39: 1.051
A41: 82.5kg/181.8lb Junior (20-23) Men Raw APF | D41: 0 | G41: 0 | I41: 0 | K41: 0 | L41: 0 | M41: 0
A42: Joseph Harbold | B42: 21 | C42: 80.3 | D42: 177.02938 | E42: M-RJR | F42: 172.5 | G42: 380.2935 | H42: 105 | I42: 231.483 | J42: 260 | K42: 573.196 | L42: 537.5 | M42: 1184.9725 | N42: 576.21075 | O42: 1.02 | P42: 1.051
A44: 82.5kg/181.8lb Open Men Raw APF | D44: =IF(ISBLANK(A44),"",C44*2.2046) -> 0 | G44: =IF(ISBLANK(A44),"",F44*2.2046) -> 0 | I44: =IF(ISBLANK(A44),"",H44*2.2046) -> 0 | K44: =IF(ISBLANK(A44),"",J44*2.2046) -> 0 | L44: =IF(ISBLANK(A44),"",F44+H44+J44) -> 0 | M44: =IF(ISBLANK(A44),"",L44*2.2046) -> 0 | N44: =IF(ISBLANK(A44),"",L44*O44*P44) ->  | O44: =IF(ISNUMBER(B44),VLOOKUP(B44,af,2),"") ->  | P44: =IF(ISNUMBER(C44),IF(LEFT(E44,1)="M",VLOOKUP(C44,mwf,2),VLOOKUP(C44,wwf,2)),"") -> 
A45: Joseph Kasongo | B45: 24 | C45: 79.1 | D45: =IF(ISBLANK(A45),"",C45*2.2046) -> 174.38386 | E45: M-RO | F45: 105 | G45: =IF(ISBLANK(A45),"",F45*2.2046) -> 231.483 | H45: 102.5 | I45: =IF(ISBLANK(A45),"",H45*2.2046) -> 225.9715 | J45: 170 | K45: =IF(ISBLANK(A45),"",J45*2.2046) -> 374.782 | L45: =IF(ISBLANK(A45),"",F45+H45+J45) -> 377.5 | M45: =IF(ISBLANK(A45),"",L45*2.2046) -> 832.2365 | N45: =IF(ISBLANK(A45),"",L45*O45*P45) -> 402.415 | O45: =IF(ISNUMBER(B45),VLOOKUP(B45,af,2),"") -> 1 | P45: =IF(ISNUMBER(C45),IF(LEFT(E45,1)="M",VLOOKUP(C45,mwf,2),VLOOKUP(C45,wwf,2)),"") -> 1.066
D46: =IF(ISBLANK(A46),"",C46*2.2046) ->  | G46: =IF(ISBLANK(A46),"",F46*2.2046) ->  | I46: =IF(ISBLANK(A46),"",H46*2.2046) ->  | K46: =IF(ISBLANK(A46),"",J46*2.2046) ->  | L46: =IF(ISBLANK(A46),"",F46+H46+J46) ->  | M46: =IF(ISBLANK(A46),"",L46*2.2046) ->  | N46: =IF(ISBLANK(A46),"",L46*O46*P46) ->  | O46: =IF(ISNUMBER(B46),VLOOKUP(B46,af,2),"") ->  | P46: =IF(ISNUMBER(C46),IF(LEFT(E46,1)="M",VLOOKUP(C46,mwf,2),VLOOKUP(C46,wwf,2)),"") -> 
A47: 90.0kg/198.4lb Junior (20-23) Men Raw AAPF | D47: 0 | G47: 0 | I47: 0 | K47: 0 | L47: 0 | M47: 0
A48: Tanner Wendel | B48: 21 | C48: 86.1 | D48: 189.81606 | E48: M-RJR | F48: 200 | G48: 440.92 | H48: 145 | I48: 319.667 | J48: 257.5 | K48: 567.6845 | L48: 602.5 | M48: 1328.2715 | N48: 613.3209 | O48: 1.02 | P48: 0.998
A50: 90.0kg/198.4lb Junior (20-23) Men Raw APF | D50: 0 | G50: 0 | I50: 0 | K50: 0 | L50: 0 | M50: 0
A51: Jacob Lucas | B51: 22 | C51: 88.6 | D51: 195.32756 | E51: M-RJR | F51: 282.5 | G51: 622.7995 | H51: 177.5 | I51: 391.3165 | J51: 295 | K51: 650.357 | L51: 755 | M51: 1664.473 | N51: 746.53645 | O51: 1.01 | P51: 0.979
A53: 100.0kg/220.4lb Junior (20-23) Men Raw AAPF | D53: 0 | G53: 0 | I53: 0 | K53: 0 | L53: 0 | M53: 0
A54: Houstin Schroff | B54: 21 | C54: 95.5 | D54: 210.5393 | E54: M-RJR | F54: 197.5 | G54: 435.4085 | H54: 152.5 | I54: 336.2015 | J54: 227.5 | K54: 501.5465 | L54: 577.5 | M54: 1273.1565 | N54: 550.1727 | O54: 1.02 | P54: 0.934
A56: 100.0kg/220.4lb Junior (20-23) Men Raw APF | D56: 0 | G56: 0 | I56: 0 | K56: 0 | L56: 0 | M56: 0
A57: Houstin Schroff | B57: 21 | C57: 95.5 | D57: 210.5393 | E57: M-RJR | F57: 197.5 | G57: 435.4085 | H57: 152.5 | I57: 336.2015 | J57: 227.5 | K57: 501.5465 | L57: 577.5 | M57: 1273.1565 | N57: 550.1727 | O57: 1.02 | P57: 0.934 | Q57: Second Place
A58: John Jensen | B58: 21 | C58: 97.1 | D58: 214.06666 | E58: M-RJR | F58: 230 | G58: 507.058 | H58: 125 | I58: 275.575 | J58: 265 | K58: 584.219 | L58: 620 | M58: 1366.852 | N58: 586.2348 | O58: 1.02 | P58: 0.927 | Q58: First Place
A60: 110.0kg/242.5lb Junior (20-23) Men Raw APF | D60: 0 | G60: 0 | I60: 0 | K60: 0 | L60: 0 | M60: 0
A61: Carlos Longo | B61: 22 | C61: 102.9 | D61: 226.85334 | E61: M-RJR | F61: 125 | G61: 275.575 | H61: 75 | I61: 165.345 | J61: 197.5 | K61: 435.4085 | L61: 397.5 | M61: 876.3285 | N61: 363.334875 | O61: 1.01 | P61: 0.905
A63: 75.0kg/165.3lb Open Men Raw AAPF | D63: 0 | G63: 0 | I63: 0 | K63: 0 | L63: 0 | M63: 0
A64: Ethan Radin | B64: 25 | C64: 73.5 | D64: 162.0381 | E64: M-RO | F64: 200 | G64: 440.92 | H64: 147.5 | I64: 325.1785 | J64: 240 | K64: 529.104 | L64: 587.5 | M64: 1295.2025 | N64: 669.1625 | O64: 1 | P64: 1.139
A66: 90.0kg/198.4lb Open Men Raw AAPF | D66: 0 | G66: 0 | I66: 0 | K66: 0 | L66: 0 | M66: 0
A68: 90.0kg/198.4lb Open Men Raw APF | D68: 0 | G68: 0 | I68: 0 | K68: 0 | L68: 0 | M68: 0
A69: Jacob Lucas | B69: 30 | C69: 88.6 | D69: 195.32756 | E69: M-RO | F69: 282.5 | G69: 622.7995 | H69: 177.5 | I69: 391.3165 | J69: 295 | K69: 650.357 | L69: 755 | M69: 1664.473 | N69: 739.145 | O69: 1 | P69: 0.979
A71: 100.0kg/220.4lb Open Men Raw AAPF | D71: 0 | G71: 0 | I71: 0 | K71: 0 | L71: 0 | M71: 0
A72: Devon Parcell | B72: 37 | C72: 98.1 | D72: 216.27126 | E72: M-RO | F72: 182.5 | G72: 402.3395 | H72: 157.5 | I72: 347.2245 | J72: 220 | K72: 485.012 | L72: 560 | M72: 1234.576 | N72: 516.88 | O72: 1 | P72: 0.923
A74: 100.0kg/220.4lb Open Men Raw APF | D74: 0 | G74: 0 | I74: 0 | K74: 0 | L74: 0 | M74: 0
A75: Devon Parcell | B75: 37 | C75: 98.1 | D75: 216.27126 | E75: M-RO | F75: 182.5 | G75: 402.3395 | H75: 157.5 | I75: 347.2245 | J75: 220 | K75: 485.012 | L75: 560 | M75: 1234.576 | N75: 516.88 | O75: 1 | P75: 0.923 | Q75: First Place
A76: Scott Almquist | B76: 28 | C76: 91.5 | D76: 201.7209 | E76: M-RO | F76: 172.5 | G76: 380.2935 | H76: 102.5 | I76: 225.9715 | J76: 242.5 | K76: 534.6155 | L76: 517.5 | M76: 1140.8805 | N76: 495.765 | O76: 1 | P76: 0.958 | Q76: Second Place
A78: 100.0kg/220.4lb Submasters (33-39) Men Raw AAPF | D78: 0 | G78: 0 | I78: 0 | K78: 0 | L78: 0 | M78: 0
A79: Devon Parcell | B79: 37 | C79: 98.1 | D79: 216.27126 | E79: M-RSM | F79: 182.5 | G79: 402.3395 | H79: 157.5 | I79: 347.2245 | J79: 220 | K79: 485.012 | L79: 560 | M79: 1234.576 | N79: 516.88 | O79: 1 | P79: 0.923
A81: 100.0kg/220.4lb Submasters (33-39) Men Raw APF | D81: 0 | G81: 0 | I81: 0 | K81: 0 | L81: 0 | M81: 0
A82: Devon Parcell | B82: 37 | C82: 98.1 | D82: 216.27126 | E82: M-RSM | F82: 182.5 | G82: 402.3395 | H82: 157.5 | I82: 347.2245 | J82: 220 | K82: 485.012 | L82: 560 | M82: 1234.576 | N82: 516.88 | O82: 1 | P82: 0.923
A88: Powerlifting: Classic Raw Division
A89: Women | D89: =IF(ISBLANK(A89),"",C89*2.2046) -> 0 | G89: =IF(ISBLANK(A89),"",F89*2.2046) -> 0 | I89: =IF(ISBLANK(A89),"",H89*2.2046) -> 0 | K89: =IF(ISBLANK(A89),"",J89*2.2046) -> 0 | L89: =IF(ISBLANK(A89),"",F89+H89+J89) -> 0 | M89: =IF(ISBLANK(A89),"",L89*2.2046) -> 0 | N89: =IF(ISBLANK(A89),"",L89*O89*P89) ->  | O89: =IF(ISNUMBER(B89),VLOOKUP(B89,af,2),"") ->  | P89: =IF(ISNUMBER(C89),IF(LEFT(E89,1)="M",VLOOKUP(C89,mwf,2),VLOOKUP(C89,wwf,2)),"") -> 
A90: 67.5kg/148.8lb Junior (20-23) Women Classic Raw AAPF | D90: 0 | G90: 0 | I90: 0 | K90: 0 | L90: 0 | M90: 0
A91: Yennhi Hoang | B91: 20 | C91: 61.2 | D91: 134.92152 | E91: F-CRJR | F91: 80 | G91: 176.368 | H91: 52.5 | I91: 115.7415 | J91: 120 | K91: 264.552 | L91: 252.5 | M91: 556.6615 | N91: 456.951775 | O91: 1.03 | P91: 1.757
A93: 75.0kg/165.3lb Junior (20-23) Women Classic Raw APF | D93: 0 | G93: 0 | I93: 0 | K93: 0 | L93: 0 | M93: 0
A94: Morgan Reiley | B94: 20 | C94: 73.7 | D94: 162.47902 | E94: F-CRJR | F94: 125 | G94: 275.575 | H94: 57.5 | I94: 126.7645 | J94: 127.5 | K94: 281.0865 | L94: 310 | M94: 683.426 | N94: 498.4273 | O94: 1.03 | P94: 1.561
A96: 67.5kg/148.8lb Open Women Classic Raw AAPF | D96: 0 | G96: 0 | I96: 0 | K96: 0 | L96: 0 | M96: 0
A97: Abby Christensen | B97: 37 | C97: 67.4 | D97: 148.59004 | E97: F-CRO | F97: 110 | G97: 242.506 | H97: 67.5 | I97: 148.8105 | J97: 135 | K97: 297.621 | L97: 312.5 | M97: 688.9375 | N97: 513.4375 | O97: 1 | P97: 1.643
A99: 67.5kg/148.8lb Open Women Classic Raw APF | D99: =IF(ISBLANK(A99),"",C99*2.2046) -> 0 | G99: =IF(ISBLANK(A99),"",F99*2.2046) -> 0 | I99: =IF(ISBLANK(A99),"",H99*2.2046) -> 0 | K99: =IF(ISBLANK(A99),"",J99*2.2046) -> 0 | L99: =IF(ISBLANK(A99),"",F99+H99+J99) -> 0 | M99: =IF(ISBLANK(A99),"",L99*2.2046) -> 0 | N99: =IF(ISBLANK(A99),"",L99*O99*P99) ->  | O99: =IF(ISNUMBER(B99),VLOOKUP(B99,af,2),"") ->  | P99: =IF(ISNUMBER(C99),IF(LEFT(E99,1)="M",VLOOKUP(C99,mwf,2),VLOOKUP(C99,wwf,2)),"") -> 
A100: Elsie Christensen | B100: 35 | C100: 67.2 | D100: 148.14912 | E100: F-CRO | F100: 100 | G100: 220.46 | H100: 52.5 | I100: 115.7415 | J100: 137.5 | K100: 303.1325 | L100: 290 | M100: 639.334 | N100: 477.63 | O100: 1 | P100: 1.647
A102: 60.0kg/132.2lb Submasters (33-39) Women Classic Raw AAPF | D102: 0 | G102: 0 | I102: 0 | K102: 0 | L102: 0 | M102: 0
A103: Amber Skewes | B103: 35 | C103: 59.8 | D103: 131.83508 | E103: F-CRSM | F103: 100 | G103: 220.46 | H103: 55 | I103: 121.253 | J103: 140 | K103: 308.644 | L103: 295 | M103: 650.357 | N103: 527.755 | O103: 1 | P103: 1.789
A105: 60.0kg/132.2lb Submasters (33-39) Women Classic Raw APF | D105: 0 | G105: 0 | I105: 0 | K105: 0 | L105: 0 | M105: 0
A106: Melissa Lefler | B106: 38 | C106: 59.2 | D106: 130.51232 | E106: F-CRSM | F106: 110 | G106: 242.506 | H106: 57.5 | I106: 126.7645 | J106: 130 | K106: 286.598 | L106: 297.5 | M106: 655.8685 | N106: 537.88 | O106: 1 | P106: 1.808
A108: 67.5kg/148.8lb Submasters (33-39) Women Classic Raw APF | D108: 0 | G108: 0 | I108: 0 | K108: 0 | L108: 0 | M108: 0
A109: Leslie Faragher | B109: 33 | C109: 65.8 | D109: 145.06268 | E109: F-CRSM | F109: 130 | G109: 286.598 | H109: 70 | I109: 154.322 | J109: 132.5 | K109: 292.1095 | L109: 332.5 | M109: 733.0295 | N109: 554.61 | O109: 1 | P109: 1.668
A111: 67.5kg/148.8lb Masters M1 (40-44) Women Classic Raw APF | D111: 0 | G111: 0 | I111: 0 | K111: 0 | L111: 0 | M111: 0
A112: Angie Adams | B112: 42 | C112: 65.4 | D112: 144.18084 | E112: F-CRM1 | F112: 90 | G112: 198.414 | H112: 55 | I112: 121.253 | J112: 0 | K112: 0 | L112: 145 | M112: 319.667 | N112: 247.8804 | O112: 1.02 | P112: 1.676 | Q112: DQ (Deadlift)
A114: 67.5kg/148.8lb Masters M4 (55-59) Women Classic Raw APF | D114: =IF(ISBLANK(A114),"",C114*2.2046) -> 0 | G114: =IF(ISBLANK(A114),"",F114*2.2046) -> 0 | I114: =IF(ISBLANK(A114),"",H114*2.2046) -> 0 | K114: =IF(ISBLANK(A114),"",J114*2.2046) -> 0 | L114: =IF(ISBLANK(A114),"",F114+H114+J114) -> 0 | M114: =IF(ISBLANK(A114),"",L114*2.2046) -> 0 | N114: =IF(ISBLANK(A114),"",L114*O114*P114) ->  | O114: =IF(ISNUMBER(B114),VLOOKUP(B114,af,2),"") ->  | P114: =IF(ISNUMBER(C114),IF(LEFT(E114,1)="M",VLOOKUP(C114,mwf,2),VLOOKUP(C114,wwf,2)),"") -> 
D115: =IF(ISBLANK(A115),"",C115*2.2046) ->  | G115: =IF(ISBLANK(A115),"",F115*2.2046) ->  | I115: =IF(ISBLANK(A115),"",H115*2.2046) ->  | K115: =IF(ISBLANK(A115),"",J115*2.2046) ->  | L115: =IF(ISBLANK(A115),"",F115+H115+J115) ->  | M115: =IF(ISBLANK(A115),"",L115*2.2046) ->  | N115: =IF(ISBLANK(A115),"",L115*O115*P115) ->  | O115: =IF(ISNUMBER(B115),VLOOKUP(B115,af,2),"") ->  | P115: =IF(ISNUMBER(C115),IF(LEFT(E115,1)="M",VLOOKUP(C115,mwf,2),VLOOKUP(C115,wwf,2)),"") -> 
D116: =IF(ISBLANK(A116),"",C116*2.2046) ->  | G116: =IF(ISBLANK(A116),"",F116*2.2046) ->  | I116: =IF(ISBLANK(A116),"",H116*2.2046) ->  | K116: =IF(ISBLANK(A116),"",J116*2.2046) ->  | L116: =IF(ISBLANK(A116),"",F116+H116+J116) ->  | M116: =IF(ISBLANK(A116),"",L116*2.2046) ->  | N116: =IF(ISBLANK(A116),"",L116*O116*P116) ->  | O116: =IF(ISNUMBER(B116),VLOOKUP(B116,af,2),"") ->  | P116: =IF(ISNUMBER(C116),IF(LEFT(E116,1)="M",VLOOKUP(C116,mwf,2),VLOOKUP(C116,wwf,2)),"") -> 
A117: Men | D117: =IF(ISBLANK(A117),"",C117*2.2046) -> 0 | G117: =IF(ISBLANK(A117),"",F117*2.2046) -> 0 | I117: =IF(ISBLANK(A117),"",H117*2.2046) -> 0 | K117: =IF(ISBLANK(A117),"",J117*2.2046) -> 0 | L117: =IF(ISBLANK(A117),"",F117+H117+J117) -> 0 | M117: =IF(ISBLANK(A117),"",L117*2.2046) -> 0 | N117: =IF(ISBLANK(A117),"",L117*O117*P117) ->  | O117: =IF(ISNUMBER(B117),VLOOKUP(B117,af,2),"") ->  | P117: =IF(ISNUMBER(C117),IF(LEFT(E117,1)="M",VLOOKUP(C117,mwf,2),VLOOKUP(C117,wwf,2)),"") -> 
A118: 82.5kg/181.8lb Junior (20-23) Men Classic Raw AAPF | D118: =IF(ISBLANK(A118),"",C118*2.2046) -> 0 | G118: =IF(ISBLANK(A118),"",F118*2.2046) -> 0 | I118: =IF(ISBLANK(A118),"",H118*2.2046) -> 0 | K118: =IF(ISBLANK(A118),"",J118*2.2046) -> 0 | L118: =IF(ISBLANK(A118),"",F118+H118+J118) -> 0 | M118: =IF(ISBLANK(A118),"",L118*2.2046) -> 0 | N118: =IF(ISBLANK(A118),"",L118*O118*P118) ->  | O118: =IF(ISNUMBER(B118),VLOOKUP(B118,af,2),"") ->  | P118: =IF(ISNUMBER(C118),IF(LEFT(E118,1)="M",VLOOKUP(C118,mwf,2),VLOOKUP(C118,wwf,2)),"") -> 
A119: Jeremy Evans | B119: 20 | C119: 79.7 | D119: 175.70662 | E119: M-CRJR | F119: 135 | G119: 297.621 | H119: 122.5 | I119: 270.0635 | J119: 185 | K119: 407.851 | L119: 442.5 | M119: 975.5355 | N119: 483.1215 | O119: 1.03 | P119: 1.06
A121: 90.0kg/198.4lb Junior (20-23) Men Classic Raw AAPF | D121: 0 | G121: 0 | I121: 0 | K121: 0 | L121: 0 | M121: 0
A122: Colton Powell | B122: 22 | C122: 87.7 | D122: =IF(ISBLANK(A122),"",C122*2.2046) -> 193.34342 | E122: M-CRJR | F122: 175 | G122: =IF(ISBLANK(A122),"",F122*2.2046) -> 385.805 | H122: 120 | I122: =IF(ISBLANK(A122),"",H122*2.2046) -> 264.552 | J122: 180 | K122: =IF(ISBLANK(A122),"",J122*2.2046) -> 396.828 | L122: =IF(ISBLANK(A122),"",F122+H122+J122) -> 475 | M122: =IF(ISBLANK(A122),"",L122*2.2046) -> 1047.185 | N122: =IF(ISBLANK(A122),"",L122*O122*P122) -> 473.51325 | O122: =IF(ISNUMBER(B122),VLOOKUP(B122,af,2),"") -> 1.01 | P122: =IF(ISNUMBER(C122),IF(LEFT(E122,1)="M",VLOOKUP(C122,mwf,2),VLOOKUP(C122,wwf,2)),"") -> 0.987
D123: =IF(ISBLANK(A123),"",C123*2.2046) ->  | G123: =IF(ISBLANK(A123),"",F123*2.2046) ->  | I123: =IF(ISBLANK(A123),"",H123*2.2046) ->  | K123: =IF(ISBLANK(A123),"",J123*2.2046) ->  | L123: =IF(ISBLANK(A123),"",F123+H123+J123) ->  | M123: =IF(ISBLANK(A123),"",L123*2.2046) ->  | N123: =IF(ISBLANK(A123),"",L123*O123*P123) ->  | O123: =IF(ISNUMBER(B123),VLOOKUP(B123,af,2),"") ->  | P123: =IF(ISNUMBER(C123),IF(LEFT(E123,1)="M",VLOOKUP(C123,mwf,2),VLOOKUP(C123,wwf,2)),"") -> 
A124: 100.0kg/220.4lb Junior (20-23) Men Classic Raw APF | D124: =IF(ISBLANK(A124),"",C124*2.2046) -> 0 | G124: =IF(ISBLANK(A124),"",F124*2.2046) -> 0 | I124: =IF(ISBLANK(A124),"",H124*2.2046) -> 0 | K124: =IF(ISBLANK(A124),"",J124*2.2046) -> 0 | L124: =IF(ISBLANK(A124),"",F124+H124+J124) -> 0 | M124: =IF(ISBLANK(A124),"",L124*2.2046) -> 0 | N124: =IF(ISBLANK(A124),"",L124*O124*P124) ->  | O124: =IF(ISNUMBER(B124),VLOOKUP(B124,af,2),"") ->  | P124: =IF(ISNUMBER(C124),IF(LEFT(E124,1)="M",VLOOKUP(C124,mwf,2),VLOOKUP(C124,wwf,2)),"") -> 
A125: Taylor Griffiths | B125: 22 | C125: 97.6 | D125: =IF(ISBLANK(A125),"",C125*2.2046) -> 215.16896 | E125: M-CRJR | F125: 235 | G125: =IF(ISBLANK(A125),"",F125*2.2046) -> 518.081 | H125: 185 | I125: =IF(ISBLANK(A125),"",H125*2.2046) -> 407.851 | J125: 302.5 | K125: =IF(ISBLANK(A125),"",J125*2.2046) -> 666.8915 | L125: =IF(ISBLANK(A125),"",F125+H125+J125) -> 722.5 | M125: =IF(ISBLANK(A125),"",L125*2.2046) -> 1592.8235 | N125: =IF(ISBLANK(A125),"",L125*O125*P125) -> 674.995625 | O125: =IF(ISNUMBER(B125),VLOOKUP(B125,af,2),"") -> 1.01 | P125: =IF(ISNUMBER(C125),IF(LEFT(E125,1)="M",VLOOKUP(C125,mwf,2),VLOOKUP(C125,wwf,2)),"") -> 0.925
D126: =IF(ISBLANK(A126),"",C126*2.2046) ->  | G126: =IF(ISBLANK(A126),"",F126*2.2046) ->  | I126: =IF(ISBLANK(A126),"",H126*2.2046) ->  | K126: =IF(ISBLANK(A126),"",J126*2.2046) ->  | L126: =IF(ISBLANK(A126),"",F126+H126+J126) ->  | M126: =IF(ISBLANK(A126),"",L126*2.2046) ->  | N126: =IF(ISBLANK(A126),"",L126*O126*P126) ->  | O126: =IF(ISNUMBER(B126),VLOOKUP(B126,af,2),"") ->  | P126: =IF(ISNUMBER(C126),IF(LEFT(E126,1)="M",VLOOKUP(C126,mwf,2),VLOOKUP(C126,wwf,2)),"") -> 
A127: 110.0kg/242.5lb Junior (20-23) Men Classic Raw APF | D127: 0 | G127: 0 | I127: 0 | K127: 0 | L127: 0 | M127: 0
A128: Mikkel Langseth | B128: 22 | C128: 107.7 | D128: 237.43542 | E128: M-CRJR | F128: 270 | G128: 595.242 | H128: 140 | I128: 308.644 | J128: 265 | K128: 584.219 | L128: 675 | M128: 1488.105 | N128: 607.43925 | O128: 1.01 | P128: 0.891
A130: 67.5kg/148.8lb Open Men Classic Raw APF | D130: =IF(ISBLANK(A130),"",C130*2.2046) -> 0 | G130: =IF(ISBLANK(A130),"",F130*2.2046) -> 0 | I130: =IF(ISBLANK(A130),"",H130*2.2046) -> 0 | K130: =IF(ISBLANK(A130),"",J130*2.2046) -> 0 | L130: =IF(ISBLANK(A130),"",F130+H130+J130) -> 0 | M130: =IF(ISBLANK(A130),"",L130*2.2046) -> 0 | N130: =IF(ISBLANK(A130),"",L130*O130*P130) ->  | O130: =IF(ISNUMBER(B130),VLOOKUP(B130,af,2),"") ->  | P130: =IF(ISNUMBER(C130),IF(LEFT(E130,1)="M",VLOOKUP(C130,mwf,2),VLOOKUP(C130,wwf,2)),"") -> 
A131: Jason Gonzalez | B131: 24 | C131: 65.4 | D131: =IF(ISBLANK(A131),"",C131*2.2046) -> 144.18084 | E131: M-CRO | F131: 195 | G131: =IF(ISBLANK(A131),"",F131*2.2046) -> 429.897 | H131: 152.5 | I131: =IF(ISBLANK(A131),"",H131*2.2046) -> 336.2015 | J131: 210 | K131: =IF(ISBLANK(A131),"",J131*2.2046) -> 462.966 | L131: =IF(ISBLANK(A131),"",F131+H131+J131) -> 557.5 | M131: =IF(ISBLANK(A131),"",L131*2.2046) -> 1229.0645 | N131: =IF(ISBLANK(A131),"",L131*O131*P131) -> 715.83 | O131: =IF(ISNUMBER(B131),VLOOKUP(B131,af,2),"") -> 1 | P131: =IF(ISNUMBER(C131),IF(LEFT(E131,1)="M",VLOOKUP(C131,mwf,2),VLOOKUP(C131,wwf,2)),"") -> 1.284
D132: =IF(ISBLANK(A132),"",C132*2.2046) ->  | G132: =IF(ISBLANK(A132),"",F132*2.2046) ->  | I132: =IF(ISBLANK(A132),"",H132*2.2046) ->  | K132: =IF(ISBLANK(A132),"",J132*2.2046) ->  | L132: =IF(ISBLANK(A132),"",F132+H132+J132) ->  | M132: =IF(ISBLANK(A132),"",L132*2.2046) ->  | N132: =IF(ISBLANK(A132),"",L132*O132*P132) ->  | O132: =IF(ISNUMBER(B132),VLOOKUP(B132,af,2),"") ->  | P132: =IF(ISNUMBER(C132),IF(LEFT(E132,1)="M",VLOOKUP(C132,mwf,2),VLOOKUP(C132,wwf,2)),"") -> 
A133: 90.0kg/198.4lb Open Men Classic Raw AAPF | D133: 0 | G133: 0 | I133: 0 | K133: 0 | L133: 0 | M133: 0
A134: Robert Simmons | B134: 24 | C134: 88.7 | D134: 195.54802 | E134: M-CRO | F134: 207.5 | G134: 457.4545 | H134: 147.5 | I134: 325.1785 | K134: 0 | L134: 355 | M134: 782.633 | N134: 347.545 | O134: 1 | P134: 0.979
A136: 82.5kg/181.8lb Open Men Classic Raw AAPF | D136: =IF(ISBLANK(A136),"",C136*2.2046) -> 0 | G136: =IF(ISBLANK(A136),"",F136*2.2046) -> 0 | I136: =IF(ISBLANK(A136),"",H136*2.2046) -> 0 | K136: =IF(ISBLANK(A136),"",J136*2.2046) -> 0 | L136: =IF(ISBLANK(A136),"",F136+H136+J136) -> 0 | M136: =IF(ISBLANK(A136),"",L136*2.2046) -> 0 | N136: =IF(ISBLANK(A136),"",L136*O136*P136) ->  | O136: =IF(ISNUMBER(B136),VLOOKUP(B136,af,2),"") ->  | P136: =IF(ISNUMBER(C136),IF(LEFT(E136,1)="M",VLOOKUP(C136,mwf,2),VLOOKUP(C136,wwf,2)),"") -> 
A137: Michael Lear | B137: 33 | C137: 81.5 | D137: =IF(ISBLANK(A137),"",C137*2.2046) -> 179.6749 | E137: M-CRO | F137: 245 | G137: =IF(ISBLANK(A137),"",F137*2.2046) -> 540.127 | H137: 152.5 | I137: =IF(ISBLANK(A137),"",H137*2.2046) -> 336.2015 | J137: 300 | K137: =IF(ISBLANK(A137),"",J137*2.2046) -> 661.38 | L137: =IF(ISBLANK(A137),"",F137+H137+J137) -> 697.5 | M137: =IF(ISBLANK(A137),"",L137*2.2046) -> 1537.7085 | N137: =IF(ISBLANK(A137),"",L137*O137*P137) -> 724.7025 | O137: =IF(ISNUMBER(B137),VLOOKUP(B137,af,2),"") -> 1 | P137: =IF(ISNUMBER(C137),IF(LEFT(E137,1)="M",VLOOKUP(C137,mwf,2),VLOOKUP(C137,wwf,2)),"") -> 1.039
A139: 90.0kg/198.4lb Open Men Classic Raw APF | D139: 0 | G139: 0 | I139: 0 | K139: 0 | L139: 0 | M139: 0
A140: Robert Simmons | B140: 24 | C140: 88.7 | D140: 195.54802 | E140: M-CRO | F140: 207.5 | G140: 457.4545 | H140: 147.5 | I140: 325.1785 | J140: 240 | K140: 529.104 | L140: 595 | M140: 1311.737 | N140: 582.505 | O140: 1 | P140: 0.979
A142: 82.5kg/181.8lb Open Men Classic Raw APF | D142: =IF(ISBLANK(A142),"",C142*2.2046) -> 0 | G142: =IF(ISBLANK(A142),"",F142*2.2046) -> 0 | I142: =IF(ISBLANK(A142),"",H142*2.2046) -> 0 | K142: =IF(ISBLANK(A142),"",J142*2.2046) -> 0 | L142: =IF(ISBLANK(A142),"",F142+H142+J142) -> 0 | M142: =IF(ISBLANK(A142),"",L142*2.2046) -> 0 | N142: =IF(ISBLANK(A142),"",L142*O142*P142) ->  | O142: =IF(ISNUMBER(B142),VLOOKUP(B142,af,2),"") ->  | P142: =IF(ISNUMBER(C142),IF(LEFT(E142,1)="M",VLOOKUP(C142,mwf,2),VLOOKUP(C142,wwf,2)),"") -> 
A143: Michael Lear | B143: 33 | C143: 81.5 | D143: =IF(ISBLANK(A143),"",C143*2.2046) -> 179.6749 | E143: M-CRO | F143: 245 | G143: =IF(ISBLANK(A143),"",F143*2.2046) -> 540.127 | H143: 152.5 | I143: =IF(ISBLANK(A143),"",H143*2.2046) -> 336.2015 | J143: 300 | K143: =IF(ISBLANK(A143),"",J143*2.2046) -> 661.38 | L143: =IF(ISBLANK(A143),"",F143+H143+J143) -> 697.5 | M143: =IF(ISBLANK(A143),"",L143*2.2046) -> 1537.7085 | N143: =IF(ISBLANK(A143),"",L143*O143*P143) -> 724.7025 | O143: =IF(ISNUMBER(B143),VLOOKUP(B143,af,2),"") -> 1 | P143: =IF(ISNUMBER(C143),IF(LEFT(E143,1)="M",VLOOKUP(C143,mwf,2),VLOOKUP(C143,wwf,2)),"") -> 1.039
A144: 100.0kg/220.4lb Open Men Classic Raw AAPF | D144: 0 | G144: 0 | I144: 0 | K144: 0 | L144: 0 | M144: 0
A146: 100.0kg/220.4lb Open Men Classic Raw APF | D146: 0 | G146: 0 | I146: 0 | K146: 0 | L146: 0 | M146: 0
A147: Taylor Griffiths | B147: 30 | C147: 97.6 | D147: =IF(ISBLANK(A147),"",C147*2.2046) -> 215.16896 | E147: M-CRO | F147: 235 | G147: =IF(ISBLANK(A147),"",F147*2.2046) -> 518.081 | H147: 185 | I147: =IF(ISBLANK(A147),"",H147*2.2046) -> 407.851 | J147: 302.5 | K147: =IF(ISBLANK(A147),"",J147*2.2046) -> 666.8915 | L147: =IF(ISBLANK(A147),"",F147+H147+J147) -> 722.5 | M147: =IF(ISBLANK(A147),"",L147*2.2046) -> 1592.8235 | N147: =IF(ISBLANK(A147),"",L147*O147*P147) -> 668.3125 | O147: =IF(ISNUMBER(B147),VLOOKUP(B147,af,2),"") -> 1 | P147: =IF(ISNUMBER(C147),IF(LEFT(E147,1)="M",VLOOKUP(C147,mwf,2),VLOOKUP(C147,wwf,2)),"") -> 0.925 | Q147: First Place
A148: Les Beecher | B148: 30 | C148: 98.4 | D148: =IF(ISBLANK(A148),"",C148*2.2046) -> 216.93264 | E148: M-CRO | F148: 242.5 | G148: =IF(ISBLANK(A148),"",F148*2.2046) -> 534.6155 | H148: 185 | I148: =IF(ISBLANK(A148),"",H148*2.2046) -> 407.851 | J148: 252.5 | K148: =IF(ISBLANK(A148),"",J148*2.2046) -> 556.6615 | L148: =IF(ISBLANK(A148),"",F148+H148+J148) -> 680 | M148: =IF(ISBLANK(A148),"",L148*2.2046) -> 1499.128 | N148: =IF(ISBLANK(A148),"",L148*O148*P148) -> 626.96 | O148: =IF(ISNUMBER(B148),VLOOKUP(B148,af,2),"") -> 1 | P148: =IF(ISNUMBER(C148),IF(LEFT(E148,1)="M",VLOOKUP(C148,mwf,2),VLOOKUP(C148,wwf,2)),"") -> 0.922 | Q148: Second Place
A149: Terry Vogel | B149: 30 | C149: 98.3 | D149: =IF(ISBLANK(A149),"",C149*2.2046) -> 216.71218 | E149: M-CRO | F149: 182.5 | G149: =IF(ISBLANK(A149),"",F149*2.2046) -> 402.3395 | H149: 145 | I149: =IF(ISBLANK(A149),"",H149*2.2046) -> 319.667 | J149: 215 | K149: =IF(ISBLANK(A149),"",J149*2.2046) -> 473.989 | L149: =IF(ISBLANK(A149),"",F149+H149+J149) -> 542.5 | M149: =IF(ISBLANK(A149),"",L149*2.2046) -> 1195.9955 | N149: =IF(ISBLANK(A149),"",L149*O149*P149) -> 500.185 | O149: =IF(ISNUMBER(B149),VLOOKUP(B149,af,2),"") -> 1 | P149: =IF(ISNUMBER(C149),IF(LEFT(E149,1)="M",VLOOKUP(C149,mwf,2),VLOOKUP(C149,wwf,2)),"") -> 0.922 | Q149: Third Place
A151: 110.0kg/242.5lb Open Men Classic Raw AAPF | D151: 0 | G151: 0 | I151: 0 | K151: 0 | L151: 0 | M151: 0
A152: Joey Davenport | B152: 30 | C152: 102.1 | D152: 225.08966 | E152: M-CRO | F152: 205 | G152: 451.943 | H152: 120 | I152: 264.552 | J152: 250 | K152: 551.15 | L152: 575 | M152: 1267.645 | N152: 522.1 | O152: 1 | P152: 0.908 | Q152: First Place
A153: Adam Carpenter | B153: 31 | C153: 103.8 | D153: =IF(ISBLANK(A153),"",C153*2.2046) -> 228.83748 | E153: M-CRO | F153: 210 | G153: =IF(ISBLANK(A153),"",F153*2.2046) -> 462.966 | H153: 102.5 | I153: =IF(ISBLANK(A153),"",H153*2.2046) -> 225.9715 | J153: 237.5 | K153: =IF(ISBLANK(A153),"",J153*2.2046) -> 523.5925 | L153: =IF(ISBLANK(A153),"",F153+H153+J153) -> 550 | M153: =IF(ISBLANK(A153),"",L153*2.2046) -> 1212.53 | N153: =IF(ISBLANK(A153),"",L153*O153*P153) -> 496.1 | O153: =IF(ISNUMBER(B153),VLOOKUP(B153,af,2),"") -> 1 | P153: =IF(ISNUMBER(C153),IF(LEFT(E153,1)="M",VLOOKUP(C153,mwf,2),VLOOKUP(C153,wwf,2)),"") -> 0.902 | Q153: Second Place
A155: 110.0kg/242.5lb Open Men Classic Raw APF | D155: 0 | G155: 0 | I155: 0 | K155: 0 | L155: 0 | M155: 0
A156: Joey Davenport | B156: 30 | C156: 102.1 | D156: 225.08966 | E156: M-CRO | F156: 205 | G156: 451.943 | H156: 120 | I156: 264.552 | J156: 250 | K156: 551.15 | L156: 575 | M156: 1267.645 | N156: 522.1 | O156: 1 | P156: 0.908 | Q156: Third Place
A157: Aaron Van Scoten | B157: 28 | C157: 109 | D157: =IF(ISBLANK(A157),"",C157*2.2046) -> 240.3014 | E157: M-CRO | F157: 262.5 | G157: =IF(ISBLANK(A157),"",F157*2.2046) -> 578.7075 | H157: 172.5 | I157: =IF(ISBLANK(A157),"",H157*2.2046) -> 380.2935 | J157: 287.5 | K157: =IF(ISBLANK(A157),"",J157*2.2046) -> 633.8225 | L157: =IF(ISBLANK(A157),"",F157+H157+J157) -> 722.5 | M157: =IF(ISBLANK(A157),"",L157*2.2046) -> 1592.8235 | N157: =IF(ISBLANK(A157),"",L157*O157*P157) -> 640.8575 | O157: =IF(ISNUMBER(B157),VLOOKUP(B157,af,2),"") -> 1 | P157: =IF(ISNUMBER(C157),IF(LEFT(E157,1)="M",VLOOKUP(C157,mwf,2),VLOOKUP(C157,wwf,2)),"") -> 0.887 | Q157: First Place
A158: Joel Higgins | B158: 30 | C158: 103.7 | D158: =IF(ISBLANK(A158),"",C158*2.2046) -> 228.61702 | E158: M-CRO | F158: 237.5 | G158: =IF(ISBLANK(A158),"",F158*2.2046) -> 523.5925 | H158: 167.5 | I158: =IF(ISBLANK(A158),"",H158*2.2046) -> 369.2705 | J158: 242.5 | K158: =IF(ISBLANK(A158),"",J158*2.2046) -> 534.6155 | L158: =IF(ISBLANK(A158),"",F158+H158+J158) -> 647.5 | M158: =IF(ISBLANK(A158),"",L158*2.2046) -> 1427.4785 | N158: =IF(ISBLANK(A158),"",L158*O158*P158) -> 584.6925 | O158: =IF(ISNUMBER(B158),VLOOKUP(B158,af,2),"") -> 1 | P158: =IF(ISNUMBER(C158),IF(LEFT(E158,1)="M",VLOOKUP(C158,mwf,2),VLOOKUP(C158,wwf,2)),"") -> 0.903 | Q158: Second Place
A160: 140.0kg/308.6lb Open Men Classic Raw APF | D160: 0 | G160: 0 | I160: 0 | K160: 0 | L160: 0 | M160: 0
A161: Shay McQuiston | B161: 35 | C161: 131.9 | D161: 290.78674 | E161: M-CRO | F161: 322.5 | G161: 710.9835 | H161: 192.5 | I161: 424.3855 | J161: 272.5 | K161: 600.7535 | L161: 787.5 | M161: 1736.1225 | N161: 668.5875 | O161: 1 | P161: 0.849
A163: 100.0kg/220.4lb Submasters (33-39) Men Classic Raw AAPF | D163: 0 | G163: 0 | I163: 0 | K163: 0 | L163: 0 | M163: 0
A164: Christopher Smith | B164: 33 | C164: 96.4 | D164: 212.52344 | E164: M-CRSM | F164: 202.5 | G164: 446.4315 | H164: 122.5 | I164: 270.0635 | J164: 220 | K164: 485.012 | L164: 545 | M164: 1201.507 | N164: 507.395 | O164: 1 | P164: 0.931
A166: 100.0kg/220.4lb Submasters (33-39) Men Classic Raw APF | D166: 0 | G166: 0 | I166: 0 | K166: 0 | L166: 0 | M166: 0
A167: Tommy Winn | B167: 37 | C167: 95.3 | D167: 210.09838 | E167: M-CRSM | F167: 185 | G167: 407.851 | H167: 125 | I167: 275.575 | J167: 280 | K167: 617.288 | L167: 590 | M167: 1300.714 | N167: 551.65 | O167: 1 | P167: 0.935
A169: 140.0kg/308.6lb Submasters (33-39) Men Classic Raw APF | D169: 0 | G169: 0 | I169: 0 | K169: 0 | L169: 0 | M169: 0
A170: Shay McQuiston | B170: 35 | C170: 131.9 | D170: 290.78674 | E170: M-CRSM | F170: 322.5 | G170: 710.9835 | H170: 192.5 | I170: 424.3855 | J170: 272.5 | K170: 600.7535 | L170: 787.5 | M170: 1736.1225 | N170: 668.5875 | O170: 1 | P170: 0.849
A172: 90.0kg/198.4lb Masters M1 (40-44) Men Classic Raw APF | D172: 0 | G172: 0 | I172: 0 | K172: 0 | L172: 0 | M172: 0
A175: 100.0kg/220.5lb Masters M1 (40-44) Men Classic Raw APF | D175: 0 | G175: 0 | I175: 0 | K175: 0 | L175: 0 | M175: 0
A176: Brett Zimmerman | B176: 41 | C176: 97.3 | D176: 214.50758 | E176: M-CRM1 | F176: 175 | G176: 385.805 | H176: 150 | I176: 330.69 | J176: 242.5 | K176: 534.6155 | L176: 567.5 | M176: 1251.1105 | N176: 530.76005 | O176: 1.01 | P176: 0.926 | Q176: First Place
A177: Terry Vogel | B177: 44 | C177: 98.3 | D177: =IF(ISBLANK(A177),"",C177*2.2046) -> 216.71218 | E177: M-CRM1 | F177: 182.5 | G177: =IF(ISBLANK(A177),"",F177*2.2046) -> 402.3395 | H177: 145 | I177: =IF(ISBLANK(A177),"",H177*2.2046) -> 319.667 | J177: 215 | K177: =IF(ISBLANK(A177),"",J177*2.2046) -> 473.989 | L177: =IF(ISBLANK(A177),"",F177+H177+J177) -> 542.5 | M177: =IF(ISBLANK(A177),"",L177*2.2046) -> 1195.9955 | N177: =IF(ISBLANK(A177),"",L177*O177*P177) -> 521.692955 | O177: =IF(ISNUMBER(B177),VLOOKUP(B177,af,2),"") -> 1.043 | P177: =IF(ISNUMBER(C177),IF(LEFT(E177,1)="M",VLOOKUP(C177,mwf,2),VLOOKUP(C177,wwf,2)),"") -> 0.922 | Q177: Second Place
A179: 100.0kg/220.4lb Masters M2 (45-49) Men Raw APF | D179: =IF(ISBLANK(A179),"",C179*2.2046) -> 0 | G179: =IF(ISBLANK(A179),"",F179*2.2046) -> 0 | I179: =IF(ISBLANK(A179),"",H179*2.2046) -> 0 | K179: =IF(ISBLANK(A179),"",J179*2.2046) -> 0 | L179: =IF(ISBLANK(A179),"",F179+H179+J179) -> 0 | M179: =IF(ISBLANK(A179),"",L179*2.2046) -> 0 | N179: =IF(ISBLANK(A179),"",L179*O179*P179) ->  | O179: =IF(ISNUMBER(B179),VLOOKUP(B179,af,2),"") ->  | P179: =IF(ISNUMBER(C179),IF(LEFT(E179,1)="M",VLOOKUP(C179,mwf,2),VLOOKUP(C179,wwf,2)),"") -> 
A180: Les Beecher | B180: 48 | C180: 98.4 | D180: =IF(ISBLANK(A180),"",C180*2.2046) -> 216.93264 | E180: M-RM1 | F180: 242.5 | G180: =IF(ISBLANK(A180),"",F180*2.2046) -> 534.6155 | H180: 185 | I180: =IF(ISBLANK(A180),"",H180*2.2046) -> 407.851 | J180: 252.5 | K180: =IF(ISBLANK(A180),"",J180*2.2046) -> 556.6615 | L180: =IF(ISBLANK(A180),"",F180+H180+J180) -> 680 | M180: =IF(ISBLANK(A180),"",L180*2.2046) -> 1499.128 | N180: =IF(ISBLANK(A180),"",L180*O180*P180) -> 687.77512 | O180: =IF(ISNUMBER(B180),VLOOKUP(B180,af,2),"") -> 1.097 | P180: =IF(ISNUMBER(C180),IF(LEFT(E180,1)="M",VLOOKUP(C180,mwf,2),VLOOKUP(C180,wwf,2)),"") -> 0.922
A182: 110.0kg/242.5lb Masters M1 (40-44) Men Classic Raw APF | D182: 0 | G182: 0 | I182: 0 | K182: 0 | L182: 0 | M182: 0
A183: Nate Barnes | B183: 42 | C183: 103.6 | D183: 228.39656 | E183: M-CRM1 | F183: 205 | G183: 451.943 | H183: 167.5 | I183: 369.2705 | J183: 227.5 | K183: 501.5465 | L183: 600 | M183: 1322.76 | N183: 552.636 | O183: 1.02 | P183: 0.903
A185: 110.0kg/242.5lb Masters M2 (45-49) Men Classic Raw AAPF | D185: 0 | G185: 0 | I185: 0 | K185: 0 | L185: 0 | M185: 0
A186: Steve Arnoldus | B186: 45 | C186: 106.7 | D186: 235.23082 | E186: M-CRM2 | F186: 212.5 | G186: 468.4775 | H186: 137.5 | I186: 303.1325 | J186: 230 | K186: 507.058 | L186: 580 | M186: 1278.668 | N186: 547.0386 | O186: 1.055 | P186: 0.894
A190: Powerlifting: Single Ply Division
A191: Women | D191: =IF(ISBLANK(A191),"",C191*2.2046) -> 0 | G191: =IF(ISBLANK(A191),"",F191*2.2046) -> 0 | I191: =IF(ISBLANK(A191),"",H191*2.2046) -> 0 | K191: =IF(ISBLANK(A191),"",J191*2.2046) -> 0 | L191: =IF(ISBLANK(A191),"",F191+H191+J191) -> 0 | M191: =IF(ISBLANK(A191),"",L191*2.2046) -> 0 | N191: =IF(ISBLANK(A191),"",L191*O191*P191) ->  | O191: =IF(ISNUMBER(B191),VLOOKUP(B191,af,2),"") ->  | P191: =IF(ISNUMBER(C191),IF(LEFT(E191,1)="M",VLOOKUP(C191,mwf,2),VLOOKUP(C191,wwf,2)),"") -> 
D192: =IF(ISBLANK(A192),"",C192*2.2046) ->  | G192: =IF(ISBLANK(A192),"",F192*2.2046) ->  | I192: =IF(ISBLANK(A192),"",H192*2.2046) ->  | K192: =IF(ISBLANK(A192),"",J192*2.2046) ->  | L192: =IF(ISBLANK(A192),"",F192+H192+J192) ->  | M192: =IF(ISBLANK(A192),"",L192*2.2046) ->  | N192: =IF(ISBLANK(A192),"",L192*O192*P192) ->  | O192: =IF(ISNUMBER(B192),VLOOKUP(B192,af,2),"") ->  | P192: =IF(ISNUMBER(C192),IF(LEFT(E192,1)="M",VLOOKUP(C192,mwf,2),VLOOKUP(C192,wwf,2)),"") -> 
D193: =IF(ISBLANK(A193),"",C193*2.2046) ->  | G193: =IF(ISBLANK(A193),"",F193*2.2046) ->  | I193: =IF(ISBLANK(A193),"",H193*2.2046) ->  | K193: =IF(ISBLANK(A193),"",J193*2.2046) ->  | L193: =IF(ISBLANK(A193),"",F193+H193+J193) ->  | M193: =IF(ISBLANK(A193),"",L193*2.2046) ->  | N193: =IF(ISBLANK(A193),"",L193*O193*P193) ->  | O193: =IF(ISNUMBER(B193),VLOOKUP(B193,af,2),"") ->  | P193: =IF(ISNUMBER(C193),IF(LEFT(E193,1)="M",VLOOKUP(C193,mwf,2),VLOOKUP(C193,wwf,2)),"") -> 
A194: Men | D194: =IF(ISBLANK(A194),"",C194*2.2046) -> 0 | G194: =IF(ISBLANK(A194),"",F194*2.2046) -> 0 | I194: =IF(ISBLANK(A194),"",H194*2.2046) -> 0 | K194: =IF(ISBLANK(A194),"",J194*2.2046) -> 0 | L194: =IF(ISBLANK(A194),"",F194+H194+J194) -> 0 | M194: =IF(ISBLANK(A194),"",L194*2.2046) -> 0 | N194: =IF(ISBLANK(A194),"",L194*O194*P194) ->  | O194: =IF(ISNUMBER(B194),VLOOKUP(B194,af,2),"") ->  | P194: =IF(ISNUMBER(C194),IF(LEFT(E194,1)="M",VLOOKUP(C194,mwf,2),VLOOKUP(C194,wwf,2)),"") -> 
A195: 90.0kg/198.4lb Teen T3 (18-19) Men Single Ply APF | D195: =IF(ISBLANK(A195),"",C195*2.2046) -> 0 | G195: =IF(ISBLANK(A195),"",F195*2.2046) -> 0 | I195: =IF(ISBLANK(A195),"",H195*2.2046) -> 0 | K195: =IF(ISBLANK(A195),"",J195*2.2046) -> 0 | L195: =IF(ISBLANK(A195),"",F195+H195+J195) -> 0 | M195: =IF(ISBLANK(A195),"",L195*2.2046) -> 0 | N195: =IF(ISBLANK(A195),"",L195*O195*P195) ->  | O195: =IF(ISNUMBER(B195),VLOOKUP(B195,af,2),"") ->  | P195: =IF(ISNUMBER(C195),IF(LEFT(E195,1)="M",VLOOKUP(C195,mwf,2),VLOOKUP(C195,wwf,2)),"") -> 
A196: Cody Clawson | B196: 18 | C196: 84.3 | D196: 185.84778 | E196: M-SPT3 | F196: 255 | G196: 562.173 | H196: 182.5 | I196: 402.3395 | J196: 210 | K196: 462.966 | L196: 647.5 | M196: 1427.4785 | N196: 695.27255 | O196: 1.06 | P196: 1.013
A198: 82.5kg/181.8lb Junior (20-23) Men Single Ply AAPF | D198: 0 | G198: 0 | I198: 0 | K198: 0 | L198: 0 | M198: 0
A199: Anthony Campo | B199: 20 | C199: 80.8 | D199: 178.13168 | E199: M-SPJR | F199: 205 | G199: 451.943 | H199: 175 | I199: 385.805 | J199: 235 | K199: 518.081 | L199: 615 | M199: 1355.829 | N199: 662.5887 | O199: 1.03 | P199: 1.046
A201: 82.5kg/181.8lb Junior (20-23) Men Single Ply APF | D201: 0 | G201: 0 | I201: 0 | K201: 0 | L201: 0 | M201: 0
A202: Anthony Campo | B202: 20 | C202: 80.8 | D202: 178.13168 | E202: M-SPJR | F202: 205 | G202: 451.943 | H202: 175 | I202: 385.805 | J202: 235 | K202: 518.081 | L202: 615 | M202: 1355.829 | N202: 662.5887 | O202: 1.03 | P202: 1.046
A204: 90.0kg/198.4lb Open Men Single Ply AAPF | D204: 0 | G204: 0 | I204: 0 | K204: 0 | L204: 0 | M204: 0
A205: Ryan Marble | B205: 30 | C205: 89.8 | D205: 197.97308 | E205: M-SPO | F205: 297.5 | G205: 655.8685 | H205: 282.5 | I205: 622.7995 | J205: 272.5 | K205: 600.7535 | L205: 852.5 | M205: 1879.4215 | N205: 826.925 | O205: 1 | P205: 0.97 | Q205: First Place
A206: Mike Saunders | B206: 37 | C206: 89.3 | D206: 196.87078 | E206: M-SPO | F206: 0 | G206: 0 | H206: 302.5 | I206: 666.8915 | K206: 0 | L206: 302.5 | M206: 666.8915 | N206: 294.635 | O206: 1 | P206: 0.974 | Q206: DQ (Squat)
A208: 90.0kg/198.4lb Open Men Single Ply APF | D208: 0 | G208: 0 | I208: 0 | K208: 0 | L208: 0 | M208: 0
A209: Ryan Marble | B209: 30 | C209: 89.8 | D209: 197.97308 | E209: M-SPO | F209: 297.5 | G209: 655.8685 | H209: 282.5 | I209: 622.7995 | J209: 272.5 | K209: 600.7535 | L209: 852.5 | M209: 1879.4215 | N209: 826.925 | O209: 1 | P209: 0.97
A211: 110.0kg/242.5lb Open Men Single Ply APF | D211: 0 | G211: 0 | I211: 0 | K211: 0 | L211: 0 | M211: 0
A213: 140.0+kg/308.6+lb Open Men Single Ply APF | D213: 0 | G213: 0 | I213: 0 | K213: 0 | L213: 0 | M213: 0
A214: Arron Chavez | B214: 30 | C214: 148 | D214: 326.2808 | E214: M-SPO | F214: 240 | G214: 529.104 | H214: 205 | I214: 451.943 | J214: 292.5 | K214: 644.8455 | L214: 737.5 | M214: 1625.8925 | N214: 613.6 | O214: 1 | P214: 0.832
A216: 140.0+kg/308.6+lb Masters M1 (40-44) Men Single Ply APF | D216: 0 | G216: 0 | I216: 0 | K216: 0 | L216: 0 | M216: 0
A217: Arron Chavez | B217: 44 | C217: 148 | D217: 326.2808 | E217: M-SPM1 | F217: 240 | G217: 529.104 | H217: 205 | I217: 451.943 | J217: 292.5 | K217: 644.8455 | L217: 737.5 | M217: 1625.8925 | N217: 639.9848 | O217: 1.043 | P217: 0.832
D221: =IF(ISBLANK(A221),"",C221*2.2046) ->  | G221: =IF(ISBLANK(A221),"",F221*2.2046) ->  | I221: =IF(ISBLANK(A221),"",H221*2.2046) ->  | K221: =IF(ISBLANK(A221),"",J221*2.2046) ->  | L221: =IF(ISBLANK(A221),"",F221+H221+J221) ->  | M221: =IF(ISBLANK(A221),"",L221*2.2046) ->  | N221: =IF(ISBLANK(A221),"",L221*O221*P221) ->  | O221: =IF(ISNUMBER(B221),VLOOKUP(B221,af,2),"") ->  | P221: =IF(ISNUMBER(C221),IF(LEFT(E221,1)="M",VLOOKUP(C221,mwf,2),VLOOKUP(C221,wwf,2)),"") -> 
A222: Powerlifting: Multi Ply Division
A223: Women | D223: =IF(ISBLANK(A223),"",C223*2.2046) -> 0 | G223: =IF(ISBLANK(A223),"",F223*2.2046) -> 0 | I223: =IF(ISBLANK(A223),"",H223*2.2046) -> 0 | K223: =IF(ISBLANK(A223),"",J223*2.2046) -> 0 | L223: =IF(ISBLANK(A223),"",F223+H223+J223) -> 0 | M223: =IF(ISBLANK(A223),"",L223*2.2046) -> 0 | N223: =IF(ISBLANK(A223),"",L223*O223*P223) ->  | O223: =IF(ISNUMBER(B223),VLOOKUP(B223,af,2),"") ->  | P223: =IF(ISNUMBER(C223),IF(LEFT(E223,1)="M",VLOOKUP(C223,mwf,2),VLOOKUP(C223,wwf,2)),"") -> 
A224: 47.6kg/105lb Open Women Multiply APF | D224: 0 | G224: 0 | I224: =IF(ISBLANK(#REF!),"",H224*2.2046) -> 0 | K224: =IF(ISBLANK(#REF!),"",J224*2.2046) -> 0 | L224: =IF(ISBLANK(#REF!),"",F224+H224+J224) -> 0 | M224: =IF(ISBLANK(#REF!),"",L224*2.2046) -> 0 | N224: =IF(ISBLANK(#REF!),"",L224*O224*P224) -> 
A225: DQ - Cosette Neely | B225: 38 | C225: 47.6 | D225: 104.93896 | E225: F-MPO | F225: 152.5 | G225: 336.2015 | H225: 0 | I225: =IF(ISBLANK(#REF!),"",H225*2.2046) -> 0 | J225: 125 | K225: =IF(ISBLANK(#REF!),"",J225*2.2046) -> 275.575 | L225: =IF(ISBLANK(#REF!),"",F225+H225+J225) -> 277.5 | M225: =IF(ISBLANK(#REF!),"",L225*2.2046) -> 611.7765 | N225: =IF(ISBLANK(#REF!),"",L225*O225*P225) -> 652.4025 | O225: 1 | P225: 2.351 | Q225: DQ (Bench)
I226: =IF(ISBLANK(A226),"",H226*2.2046) ->  | K226: =IF(ISBLANK(A226),"",J226*2.2046) ->  | L226: =IF(ISBLANK(A226),"",F226+H226+J226) ->  | M226: =IF(ISBLANK(A226),"",L226*2.2046) ->  | N226: =IF(ISBLANK(A226),"",L226*O226*P226) -> 
A227: 90.0+kg/198.0+lb Open Women Multiply APF | D227: 0 | G227: 0 | I227: 0 | K227: 0 | L227: 0 | M227: 0
A228: Sara Schiff | B228: 30 | C228: 102.6 | D228: 226.19196 | E228: F-MPO | F228: 217.5 | G228: 479.5005 | H228: 130 | I228: 286.598 | J228: 230 | K228: 507.058 | L228: 577.5 | M228: 1273.1565 | N228: 781.3575 | O228: 1 | P228: 1.353
A230: 90.0+kg/198.0+lb Masters M1 Women Multiply APF | D230: 0 | G230: 0 | I230: 0 | K230: 0 | L230: 0 | M230: 0
A231: Sara Schiff | B231: 41 | C231: 102.6 | D231: 226.19196 | E231: F-MPM1 | F231: 217.5 | G231: 479.5005 | H231: 130 | I231: 286.598 | J231: 230 | K231: 507.058 | L231: 577.5 | M231: 1273.1565 | N231: 789.171075 | O231: 1.01 | P231: 1.353
A234: Men | D234: 0 | G234: 0 | I234: 0 | K234: 0 | L234: 0 | M234: 0
A235: 75.0kg/165.3lb Open Men Multi Ply APF | D235: =IF(ISBLANK(A235),"",C235*2.2046) -> 0 | G235: =IF(ISBLANK(A235),"",F235*2.2046) -> 0 | I235: =IF(ISBLANK(A235),"",H235*2.2046) -> 0 | K235: =IF(ISBLANK(A235),"",J235*2.2046) -> 0 | L235: =IF(ISBLANK(A235),"",F235+H235+J235) -> 0 | M235: =IF(ISBLANK(A235),"",L235*2.2046) -> 0 | N235: =IF(ISBLANK(A235),"",L235*O235*P235) ->  | O235: =IF(ISNUMBER(B235),VLOOKUP(B235,af,2),"") ->  | P235: =IF(ISNUMBER(C235),IF(LEFT(E235,1)="M",VLOOKUP(C235,mwf,2),VLOOKUP(C235,wwf,2)),"") -> 
A236: Misael Peraza | B236: 29 | C236: 74.3 | D236: 163.80178 | E236: M-MPO | F236: 300 | G236: 661.38 | H236: 167.5 | I236: 369.2705 | J236: 260 | K236: 573.196 | L236: 727.5 | M236: 1603.8465 | N236: 820.62 | O236: 1 | P236: 1.128
A238: 82.5kg/181.8lb Open Men Multi Ply APF | D238: 0 | G238: 0 | I238: 0 | K238: 0 | L238: 0 | M238: 0
A239: Dana Walker | B239: 40 | C239: 81.8 | D239: 180.33628 | E239: M-MPO | F239: 352.5 | G239: 777.1215 | I239: 0 | K239: 0 | L239: 352.5 | M239: 777.1215 | N239: 365.19 | O239: 1 | P239: 1.036 | Q239: DQ (Bench)
A241: 100.0kg/220.4lb Open Men Multi Ply APF | D241: 0 | G241: 0 | I241: 0 | K241: 0 | L241: 0 | M241: 0
A242: Dustin Johnson | B242: 29 | C242: 99.2 | D242: 218.69632 | E242: M-MPO | F242: 380 | G242: 837.748 | H242: 265 | I242: 584.219 | J242: 287.5 | K242: 633.8225 | L242: 932.5 | M242: 2055.7895 | N242: 856.9675 | O242: 1 | P242: 0.919
A244: 110.0kg/242.5lb Open Men Multi Ply APF | D244: 0 | G244: 0 | I244: 0 | K244: 0 | L244: 0 | M244: 0
A245: Dayan Neely | B245: 39 | C245: 107.5 | D245: 236.9945 | E245: M-MPO | F245: 387.5 | G245: 854.2825 | H245: 145 | I245: 319.667 | J245: 340 | K245: 749.564 | L245: 872.5 | M245: 1923.5135 | N245: 777.3975 | O245: 1 | P245: 0.891
A247: 125.0kg/275.5lb Open Men Multi Ply APF | D247: 0 | G247: 0 | I247: 0 | K247: 0 | L247: 0 | M247: 0
A248: Dalen Randa | B248: 30 | C248: 119.6 | D248: 263.67016 | E248: M-MPO | F248: 387.5 | G248: 854.2825 | H248: 332.5 | I248: 733.0295 | J248: 287.5 | K248: 633.8225 | L248: 1007.5 | M248: 2221.1345 | N248: 871.4875 | O248: 1 | P248: 0.865 | Q248: First Place
A249: Jeffrey Miller | B249: 35 | C249: 115.5 | D249: =IF(ISBLANK(A249),"",C249*2.2046) -> 254.6313 | E249: M-MPO | F249: 427.5 | G249: =IF(ISBLANK(A249),"",F249*2.2046) -> 942.4665 | H249: 142.5 | I249: =IF(ISBLANK(A249),"",H249*2.2046) -> 314.1555 | J249: 350 | K249: =IF(ISBLANK(A249),"",J249*2.2046) -> 771.61 | L249: =IF(ISBLANK(A249),"",F249+H249+J249) -> 920 | M249: =IF(ISBLANK(A249),"",L249*2.2046) -> 2028.232 | N249: =IF(ISBLANK(A249),"",L249*O249*P249) -> 802.24 | O249: =IF(ISNUMBER(B249),VLOOKUP(B249,af,2),"") -> 1 | P249: =IF(ISNUMBER(C249),IF(LEFT(E249,1)="M",VLOOKUP(C249,mwf,2),VLOOKUP(C249,wwf,2)),"") -> 0.872 | Q249: Second Place
A251: 125.0kg/275.5lb Masters M3 (50-54) Men Multi Ply APF | D251: 0 | G251: 0 | I251: 0 | K251: 0 | L251: 0 | M251: 0
A252: Dalen Randa | B252: 50 | C252: 119.6 | D252: 263.67016 | E252: M-MPM3 | F252: 387.5 | G252: 854.2825 | H252: 332.5 | I252: 733.0295 | J252: 287.5 | K252: 633.8225 | L252: 1007.5 | M252: 2221.1345 | N252: 984.780875 | O252: 1.13 | P252: 0.865
D254: =IF(ISBLANK(A254),"",C254*2.2046) ->  | G254: =IF(ISBLANK(A254),"",F254*2.2046) ->  | I254: =IF(ISBLANK(A254),"",H254*2.2046) ->  | K254: =IF(ISBLANK(A254),"",J254*2.2046) ->  | L254: =IF(ISBLANK(A254),"",F254+H254+J254) ->  | M254: =IF(ISBLANK(A254),"",L254*2.2046) ->  | N254: =IF(ISBLANK(A254),"",L254*O254*P254) ->  | O254: =IF(ISNUMBER(B254),VLOOKUP(B254,af,2),"") ->  | P254: =IF(ISNUMBER(C254),IF(LEFT(E254,1)="M",VLOOKUP(C254,mwf,2),VLOOKUP(C254,wwf,2)),"") -> 
A255: Bench Press: Raw Division
A256: Women | D256: =IF(ISBLANK(A256),"",C256*2.2046) -> 0 | G256: =IF(ISBLANK(A256),"",F256*2.2046) -> 0 | I256: =IF(ISBLANK(A256),"",H256*2.2046) -> 0 | K256: =IF(ISBLANK(A256),"",J256*2.2046) -> 0 | L256: =IF(ISBLANK(A256),"",F256+H256+J256) -> 0 | M256: =IF(ISBLANK(A256),"",L256*2.2046) -> 0 | N256: =IF(ISBLANK(A256),"",L256*O256*P256) ->  | O256: =IF(ISNUMBER(B256),VLOOKUP(B256,af,2),"") ->  | P256: =IF(ISNUMBER(C256),IF(LEFT(E256,1)="M",VLOOKUP(C256,mwf,2),VLOOKUP(C256,wwf,2)),"") -> 
A257: 67.5kg/148.8lb Teen T3 Women Raw AAPF | D257: =IF(ISBLANK(A257),"",C257*2.2046) -> 0 | G257: =IF(ISBLANK(A257),"",F257*2.2046) -> 0 | I257: =IF(ISBLANK(A257),"",H257*2.2046) -> 0 | K257: =IF(ISBLANK(A257),"",J257*2.2046) -> 0 | L257: =IF(ISBLANK(A257),"",F257+H257+J257) -> 0 | M257: =IF(ISBLANK(A257),"",L257*2.2046) -> 0 | N257: =IF(ISBLANK(A257),"",L257*O257*P257) ->  | O257: =IF(ISNUMBER(B257),VLOOKUP(B257,af,2),"") ->  | P257: =IF(ISNUMBER(C257),IF(LEFT(E257,1)="M",VLOOKUP(C257,mwf,2),VLOOKUP(C257,wwf,2)),"") -> 
A258: Alyssa Kroll | B258: 19 | C258: 63.4 | D258: 139.77164 | E258: F-RT3 | G258: 0 | H258: 80 | I258: 176.368 | K258: 0 | L258: 80 | M258: 176.368 | N258: 145.0928 | O258: 1.06 | P258: 1.711
A260: 52.0kg/114.6lb Junior (20-23) Women Raw AAPF | D260: 0 | G260: 0 | I260: 0 | K260: 0 | L260: 0 | M260: 0
A261: Collette Smith | B261: 22 | C261: 51.4 | D261: 113.31644 | E261: F-RJR | G261: 0 | H261: 52.5 | I261: 115.7415 | K261: 0 | L261: 52.5 | M261: 115.7415 | N261: 112.359975 | O261: 1.01 | P261: 2.119
A263: 52.0kg/114.6lb Open Women Raw AAPF | D263: 0 | G263: 0 | I263: 0 | K263: 0 | L263: 0 | M263: 0
A264: Collette Smith | B264: 30 | C264: 51.4 | D264: 113.31644 | E264: F-RO | G264: 0 | H264: 52.5 | I264: 115.7415 | K264: 0 | L264: 52.5 | M264: 115.7415 | N264: 111.2475 | O264: 1 | P264: 2.119
A266: 56.0kg/123.4lb Open Women Raw APF | D266: 0 | G266: 0 | I266: 0 | K266: 0 | L266: 0 | M266: 0
A268: 82.5kg/181.8lb Open Women Raw APF | D268: 0 | G268: 0 | I268: 0 | K268: 0 | L268: 0 | M268: 0
A269: Taylor Porter | B269: 30 | C269: 80 | D269: 176.368 | E269: F-RO | G269: 0 | H269: 80 | I269: 176.368 | K269: 0 | L269: 80 | M269: 176.368 | N269: 119.76 | O269: 1 | P269: 1.497
D271: =IF(ISBLANK(A271),"",C271*2.2046) ->  | G271: =IF(ISBLANK(A271),"",F271*2.2046) ->  | I271: =IF(ISBLANK(A271),"",H271*2.2046) ->  | K271: =IF(ISBLANK(A271),"",J271*2.2046) ->  | L271: =IF(ISBLANK(A271),"",F271+H271+J271) ->  | M271: =IF(ISBLANK(A271),"",L271*2.2046) ->  | N271: =IF(ISBLANK(A271),"",L271*O271*P271) ->  | O271: =IF(ISNUMBER(B271),VLOOKUP(B271,af,2),"") ->  | P271: =IF(ISNUMBER(C271),IF(LEFT(E271,1)="M",VLOOKUP(C271,mwf,2),VLOOKUP(C271,wwf,2)),"") -> 
A272: Men | D272: =IF(ISBLANK(A272),"",C272*2.2046) -> 0 | G272: =IF(ISBLANK(A272),"",F272*2.2046) -> 0 | I272: =IF(ISBLANK(A272),"",H272*2.2046) -> 0 | K272: =IF(ISBLANK(A272),"",J272*2.2046) -> 0 | L272: =IF(ISBLANK(A272),"",F272+H272+J272) -> 0 | M272: =IF(ISBLANK(A272),"",L272*2.2046) -> 0 | N272: =IF(ISBLANK(A272),"",L272*O272*P272) ->  | O272: =IF(ISNUMBER(B272),VLOOKUP(B272,af,2),"") ->  | P272: =IF(ISNUMBER(C272),IF(LEFT(E272,1)="M",VLOOKUP(C272,mwf,2),VLOOKUP(C272,wwf,2)),"") -> 
A273: 90.0kg/198.4lb Open Men Raw APF | D273: =IF(ISBLANK(A273),"",C273*2.2046) -> 0 | G273: =IF(ISBLANK(A273),"",F273*2.2046) -> 0 | I273: =IF(ISBLANK(A273),"",H273*2.2046) -> 0 | K273: =IF(ISBLANK(A273),"",J273*2.2046) -> 0 | L273: =IF(ISBLANK(A273),"",F273+H273+J273) -> 0 | M273: =IF(ISBLANK(A273),"",L273*2.2046) -> 0 | N273: =IF(ISBLANK(A273),"",L273*O273*P273) ->  | O273: =IF(ISNUMBER(B273),VLOOKUP(B273,af,2),"") ->  | P273: =IF(ISNUMBER(C273),IF(LEFT(E273,1)="M",VLOOKUP(C273,mwf,2),VLOOKUP(C273,wwf,2)),"") -> 
A274: Greg Griffith | B274: 28 | C274: 89.3 | D274: =IF(ISBLANK(A274),"",C274*2.2046) -> 196.87078 | E274: M-RO | G274: =IF(ISBLANK(A274),"",F274*2.2046) -> 0 | H274: 200 | I274: =IF(ISBLANK(A274),"",H274*2.2046) -> 440.92 | K274: =IF(ISBLANK(A274),"",J274*2.2046) -> 0 | L274: =IF(ISBLANK(A274),"",F274+H274+J274) -> 200 | M274: =IF(ISBLANK(A274),"",L274*2.2046) -> 440.92 | N274: =IF(ISBLANK(A274),"",L274*O274*P274) -> 194.8 | O274: =IF(ISNUMBER(B274),VLOOKUP(B274,af,2),"") -> 1 | P274: =IF(ISNUMBER(C274),IF(LEFT(E274,1)="M",VLOOKUP(C274,mwf,2),VLOOKUP(C274,wwf,2)),"") -> 0.974
A276: 100.0kg/220.4lb Open Men Raw AAPF | D276: 0 | G276: 0 | I276: 0 | K276: 0 | L276: 0 | M276: 0
A277: Russell Jardine | B277: 26 | C277: 97.9 | D277: 215.83034 | E277: M-RO | G277: 0 | H277: 170 | I277: 374.782 | K277: 0 | L277: 170 | M277: 374.782 | N277: 157.08 | O277: 1 | P277: 0.924
A279: 100.0kg/220.4lb Open Men Raw APF | D279: 0 | G279: 0 | I279: 0 | K279: 0 | L279: 0 | M279: 0
A280: Karl Pfanzelter | B280: 30 | C280: 97.8 | D280: =IF(ISBLANK(A280),"",C280*2.2046) -> 215.60988 | E280: M-RO | G280: =IF(ISBLANK(A280),"",F280*2.2046) -> 0 | H280: 230 | I280: =IF(ISBLANK(A280),"",H280*2.2046) -> 507.058 | K280: =IF(ISBLANK(A280),"",J280*2.2046) -> 0 | L280: =IF(ISBLANK(A280),"",F280+H280+J280) -> 230 | M280: =IF(ISBLANK(A280),"",L280*2.2046) -> 507.058 | N280: =IF(ISBLANK(A280),"",L280*O280*P280) -> 212.52 | O280: =IF(ISNUMBER(B280),VLOOKUP(B280,af,2),"") -> 1 | P280: =IF(ISNUMBER(C280),IF(LEFT(E280,1)="M",VLOOKUP(C280,mwf,2),VLOOKUP(C280,wwf,2)),"") -> 0.924
A282: 125.0kg/275.5lb Open Men Raw APF | D282: 0 | G282: 0 | I282: 0 | K282: 0 | L282: 0 | M282: 0
A283: Mike Brownfield | B283: 30 | C283: 123.6 | D283: 272.48856 | E283: M-RO | G283: 0 | H283: 0 | I283: 0 | K283: 0 | L283: 0 | M283: 0 | N283: 0 | O283: 1 | P283: 0.86 | Q283: DQ
... 68 more rows

Sheet Age Factors
A1: 0 | B1: 1
A2: 14 | B2: 1.23
A3: 15 | B3: 1.18
A4: 16 | B4: 1.13
A5: 17 | B5: 1.08
A6: 18 | B6: 1.06
A7: 20 | B7: 1.03
A8: 21 | B8: 1.02
A9: 22 | B9: 1.01
A10: 23 | B10: 1
A11: 24 | B11: 1
A12: 25 | B12: 1
A13: 26 | B13: 1
A14: 27 | B14: 1
A15: 28 | B15: 1
A16: 29 | B16: 1
A17: 30 | B17: 1
A18: 31 | B18: 1
A19: 32 | B19: 1
A20: 33 | B20: 1
A21: 34 | B21: 1
A22: 35 | B22: 1
A23: 36 | B23: 1
A24: 37 | B24: 1
A25: 38 | B25: 1
A26: 39 | B26: 1
A27: 40 | B27: 1
A28: 41 | B28: 1.01
A29: 42 | B29: 1.02
A30: 43 | B30: 1.031
A31: 44 | B31: 1.043
A32: 45 | B32: 1.055
A33: 46 | B33: 1.068
A34: 47 | B34: 1.082
A35: 48 | B35: 1.097
A36: 49 | B36: 1.113
A37: 50 | B37: 1.13
A38: 51 | B38: 1.147
A39: 52 | B39: 1.165
A40: 53 | B40: 1.184
A41: 54 | B41: 1.204
A42: 55 | B42: 1.225
A43: 56 | B43: 1.246
A44: 57 | B44: 1.268
A45: 58 | B45: 1.291
A46: 59 | B46: 1.315
A47: 60 | B47: 1.34
A48: 61 | B48: 1.366
A49: 62 | B49: 1.393
A50: 63 | B50: 1.421
A51: 64 | B51: 1.45
A52: 65 | B52: 1.48
A53: 66 | B53: 1.511
A54: 67 | B54: 1.543
A55: 68 | B55: 1.576
A56: 69 | B56: 1.61
A57: 70 | B57: 1.645
A58: 71 | B58: 1.681
A59: 72 | B59: 1.718
A60: 73 | B60: 1.756
A61: 74 | B61: 1.795
A62: 75 | B62: 1.835
A63: 76 | B63: 1.876
A64: 77 | B64: 1.918
A65: 78 | B65: 1.961
A66: 79 | B66: 2.005
A67: 80 | B67: 2.05

Sheet Mens Wght Factor
A1: 0 | B1: 1.955
A2: 50 | B2: 1.955
A3: 50.25 | B3: 1.937
A4: 50.5 | B4: 1.92
A5: 50.75 | B5: 1.902
A6: 51 | B6: 1.885
A7: 51.25 | B7: 1.867
A8: 51.5 | B8: 1.851
A9: 51.75 | B9: 1.835
A10: 52 | B10: 1.818
A11: 52.25 | B11: 1.803
A12: 52.5 | B12: 1.788
A13: 52.75 | B13: 1.773
A14: 53 | B14: 1.758
A15: 53.25 | B15: 1.743
A16: 53.5 | B16: 1.727
A17: 53.75 | B17: 1.712
A18: 54 | B18: 1.697
A19: 54.25 | B19: 1.682
A20: 54.5 | B20: 1.667
A21: 54.75 | B21: 1.655
A22: 55 | B22: 1.642
A23: 55.25 | B23: 1.63
A24: 55.5 | B24: 1.617
A25: 55.75 | B25: 1.605
A26: 56 | B26: 1.593
A27: 56.25 | B27: 1.58
A28: 56.5 | B28: 1.568
A29: 56.75 | B29: 1.555
A30: 57 | B30: 1.543
A31: 57.25 | B31: 1.531
A32: 57.5 | B32: 1.518
A33: 57.75 | B33: 1.506
A34: 58 | B34: 1.497
A35: 58.25 | B35: 1.488
A36: 58.5 | B36: 1.478
A37: 58.75 | B37: 1.469
A38: 59 | B38: 1.46
A39: 59.25 | B39: 1.451
A40: 59.5 | B40: 1.442
A41: 59.75 | B41: 1.432
A42: 60 | B42: 1.423
A43: 60.25 | B43: 1.414
A44: 60.5 | B44: 1.405
A45: 60.75 | B45: 1.398
A46: 61 | B46: 1.391
A47: 61.25 | B47: 1.384
A48: 61.5 | B48: 1.377
A49: 61.75 | B49: 1.371
A50: 62 | B50: 1.364
A51: 62.25 | B51: 1.357
A52: 62.5 | B52: 1.35
A53: 62.75 | B53: 1.343
A54: 63 | B54: 1.336
A55: 63.25 | B55: 1.329
A56: 63.5 | B56: 1.322
A57: 63.75 | B57: 1.317
A58: 64 | B58: 1.311
A59: 64.25 | B59: 1.306
A60: 64.5 | B60: 1.3
A61: 64.75 | B61: 1.295
A62: 65 | B62: 1.29
A63: 65.25 | B63: 1.284
A64: 65.5 | B64: 1.279
A65: 65.75 | B65: 1.273
A66: 66 | B66: 1.268
A67: 66.25 | B67: 1.263
A68: 66.5 | B68: 1.257
A69: 66.75 | B69: 1.252
A70: 67 | B70: 1.246
A71: 67.25 | B71: 1.242
A72: 67.5 | B72: 1.237
A73: 67.75 | B73: 1.233
A74: 68 | B74: 1.228
A75: 68.25 | B75: 1.224
A76: 68.5 | B76: 1.219
A77: 68.75 | B77: 1.215
A78: 69 | B78: 1.21
A79: 69.25 | B79: 1.206
A80: 69.5 | B80: 1.202
A81: 69.75 | B81: 1.198
A82: 70 | B82: 1.194
A83: 70.25 | B83: 1.19
A84: 70.5 | B84: 1.186
A85: 70.75 | B85: 1.182
A86: 71 | B86: 1.178
A87: 71.25 | B87: 1.174
A88: 71.5 | B88: 1.17
A89: 71.75 | B89: 1.166
A90: 72 | B90: 1.162
A91: 72.25 | B91: 1.158
A92: 72.5 | B92: 1.155
A93: 72.75 | B93: 1.151
A94: 73 | B94: 1.147
A95: 73.25 | B95: 1.143
A96: 73.5 | B96: 1.139
A97: 73.75 | B97: 1.136
A98: 74 | B98: 1.132
A99: 74.25 | B99: 1.128
A100: 74.5 | B100: 1.124
A101: 74.75 | B101: 1.12
A102: 75 | B102: 1.117
A103: 75.25 | B103: 1.114
A104: 75.5 | B104: 1.11
A105: 75.75 | B105: 1.107
A106: 76 | B106: 1.103
A107: 76.25 | B107: 1.1
A108: 76.5 | B108: 1.106
A109: 76.75 | B109: 1.093
A110: 77 | B110: 1.09
A111: 77.25 | B111: 1.087
A112: 77.5 | B112: 1.084
A113: 77.75 | B113: 1.081
A114: 78 | B114: 1.078
A115: 78.25 | B115: 1.075
A116: 78.5 | B116: 1.072
A117: 78.75 | B117: 1.069
A118: 79 | B118: 1.066
A119: 79.25 | B119: 1.063
A120: 79.5 | B120: 1.06
A121: 79.75 | B121: 1.057
A122: 80 | B122: 1.054
A123: 80.25 | B123: 1.051
A124: 80.5 | B124: 1.048
A125: 80.75 | B125: 1.046
A126: 81 | B126: 1.044
A127: 81.25 | B127: 1.041
A128: 81.5 | B128: 1.039
A129: 81.75 | B129: 1.036
A130: 82 | B130: 1.034
A131: 82.25 | B131: 1.031
A132: 82.5 | B132: 1.029
A133: 82.75 | B133: 1.026
A134: 83 | B134: 1.024
A135: 83.25 | B135: 1.022
A136: 83.5 | B136: 1.019
A137: 83.75 | B137: 1.017
A138: 84 | B138: 1.015
A139: 84.25 | B139: 1.013
A140: 84.5 | B140: 1.011
A141: 84.75 | B141: 1.008
A142: 85 | B142: 1.006
A143: 85.25 | B143: 1.004
A144: 85.5 | B144: 1.002
A145: 85.75 | B145: 1
A146: 86 | B146: 0.998
A147: 86.25 | B147: 0.996
A148: 86.5 | B148: 0.994
A149: 86.75 | B149: 0.992
A150: 87 | B150: 0.99
A151: 87.25 | B151: 0.988
A152: 87.5 | B152: 0.987
A153: 87.75 | B153: 0.985
A154: 88 | B154: 0.983
A155: 88.25 | B155: 0.981
A156: 88.5 | B156: 0.979
A157: 88.75 | B157: 0.978
A158: 89 | B158: 0.976
A159: 89.25 | B159: 0.974
A160: 89.5 | B160: 0.972
A161: 89.75 | B161: 0.97
A162: 90 | B162: 0.969
A163: 90.25 | B163: 0.967
A164: 90.5 | B164: 0.965
A165: 90.75 | B165: 0.963
A166: 91 | B166: 0.961
A167: 91.25 | B167: 0.96
A168: 91.5 | B168: 0.958
A169: 91.75 | B169: 0.956
A170: 92 | B170: 0.954
A171: 92.25 | B171: 0.952
A172: 92.5 | B172: 0.951
A173: 92.75 | B173: 0.95
A174: 93 | B174: 0.948
A175: 93.25 | B175: 0.947
A176: 93.5 | B176: 0.945
A177: 93.75 | B177: 0.944
A178: 94 | B178: 0.942
A179: 94.25 | B179: 0.941
A180: 94.5 | B180: 0.939
A181: 94.75 | B181: 0.938
A182: 95 | B182: 0.937
A183: 95.25 | B183: 0.935
A184: 95.5 | B184: 0.934
A185: 95.75 | B185: 0.933
A186: 96 | B186: 0.932
A187: 96.25 | B187: 0.931
A188: 96.5 | B188: 0.929
A189: 96.75 | B189: 0.928
A190: 97 | B190: 0.927
A191: 97.25 | B191: 0.926
A192: 97.5 | B192: 0.925
A193: 97.75 | B193: 0.924
A194: 98 | B194: 0.923
A195: 98.25 | B195: 0.922
A196: 98.5 | B196: 0.921
A197: 98.75 | B197: 0.92
A198: 99 | B198: 0.919
A199: 99.25 | B199: 0.918
A200: 99.5 | B200: 0.917
... 306 more rows

Sheet Womens Wght Factor
A1: 0 | B1: 3.145
A2: 40 | B2: 3.145
A3: 40.25 | B3: 3.105
A4: 40.5 | B4: 3.065
A5: 40.75 | B5: 3.025
A6: 41 | B6: 2.985
A7: 41.25 | B7: 2.95
A8: 41.5 | B8: 2.915
A9: 41.75 | B9: 2.882
A10: 42 | B10: 2.849
A11: 42.25 | B11: 2.817
A12: 42.5 | B12: 2.786
A13: 42.75 | B13: 2.759
A14: 43 | B14: 2.732
A15: 43.25 | B15: 2.706
A16: 43.5 | B16: 2.681
A17: 43.75 | B17: 2.656
A18: 44 | B18: 2.632
A19: 44.25 | B19: 2.61
A20: 44.5 | B20: 2.589
A21: 44.75 | B21: 2.567
A22: 45 | B22: 2.545
A23: 45.25 | B23: 2.523
A24: 45.5 | B24: 2.503
A25: 45.75 | B25: 2.483
A26: 46 | B26: 2.463
A27: 46.25 | B27: 2.443
A28: 46.5 | B28: 2.424
A29: 46.75 | B29: 2.405
A30: 47 | B30: 2.387
A31: 47.25 | B31: 2.369
A32: 47.5 | B32: 2.351
A33: 47.75 | B33: 2.333
A34: 48 | B34: 2.315
A35: 48.25 | B35: 2.297
A36: 48.5 | B36: 2.28
A37: 48.75 | B37: 2.263
A38: 49 | B38: 2.247
A39: 49.25 | B39: 2.231
A40: 49.5 | B40: 2.216
A41: 49.75 | B41: 2.202
A42: 50 | B42: 2.188
A43: 50.25 | B43: 2.174
A44: 50.5 | B44: 2.16
A45: 50.75 | B45: 2.146
A46: 51 | B46: 2.132
A47: 51.25 | B47: 2.119
A48: 51.5 | B48: 2.105
A49: 51.75 | B49: 2.092
A50: 52 | B50: 2.079
A51: 52.25 | B51: 2.066
A52: 52.5 | B52: 2.053
A53: 52.75 | B53: 2.041
A54: 53 | B54: 2.028
A55: 53.25 | B55: 2.016
A56: 53.5 | B56: 2.004
A57: 53.75 | B57: 1.994
A58: 54 | B58: 1.984
A59: 54.25 | B59: 1.974
A60: 54.5 | B60: 1.963
A61: 54.75 | B61: 1.953
A62: 55 | B62: 1.942
A63: 55.25 | B63: 1.932
A64: 55.5 | B64: 1.923
A65: 55.75 | B65: 1.914
A66: 56 | B66: 1.905
A67: 56.25 | B67: 1.896
A68: 56.5 | B68: 1.887
A69: 56.75 | B69: 1.878
A70: 57 | B70: 1.869
A71: 57.25 | B71: 1.86
A72: 57.5 | B72: 1.852
A73: 57.75 | B73: 1.845
A74: 58 | B74: 1.838
A75: 58.25 | B75: 1.83
A76: 58.5 | B76: 1.822
A77: 58.75 | B77: 1.815
A78: 59 | B78: 1.808
A79: 59.25 | B79: 1.802
A80: 59.5 | B80: 1.795
A81: 59.75 | B81: 1.789
A82: 60 | B82: 1.783
A83: 60.25 | B83: 1.776
A84: 60.5 | B84: 1.77
A85: 60.75 | B85: 1.764
A86: 61 | B86: 1.757
A87: 61.25 | B87: 1.751
A88: 61.5 | B88: 1.745
A89: 61.75 | B89: 1.74
A90: 62 | B90: 1.735
A91: 62.25 | B91: 1.73
A92: 62.5 | B92: 1.725
A93: 62.75 | B93: 1.72
A94: 63 | B94: 1.715
A95: 63.25 | B95: 1.711
A96: 63.5 | B96: 1.707
A97: 63.75 | B97: 1.703
A98: 64 | B98: 1.698
A99: 64.25 | B99: 1.694
A100: 64.5 | B100: 1.69
A101: 64.75 | B101: 1.686
A102: 65 | B102: 1.681
A103: 65.25 | B103: 1.676
A104: 65.5 | B104: 1.672
A105: 65.75 | B105: 1.668
A106: 66 | B106: 1.664
A107: 66.25 | B107: 1.66
A108: 66.5 | B108: 1.655
A109: 66.75 | B109: 1.651
A110: 67 | B110: 1.647
A111: 67.25 | B111: 1.643
A112: 67.5 | B112: 1.639
A113: 67.75 | B113: 1.634
A114: 68 | B114: 1.631
A115: 68.25 | B115: 1.627
A116: 68.5 | B116: 1.623
A117: 68.75 | B117: 1.62
A118: 69 | B118: 1.618
A119: 69.25 | B119: 1.615
A120: 69.5 | B120: 1.612
A121: 69.75 | B121: 1.608
A122: 70 | B122: 1.605
A123: 70.25 | B123: 1.601
A124: 70.5 | B124: 1.598
A125: 70.75 | B125: 1.595
A126: 71 | B126: 1.592
A127: 71.25 | B127: 1.589
A128: 71.5 | B128: 1.586
A129: 71.75 | B129: 1.583
A130: 72 | B130: 1.58
A131: 72.25 | B131: 1.577
A132: 72.5 | B132: 1.574
A133: 72.75 | B133: 1.571
A134: 73 | B134: 1.567
A135: 73.25 | B135: 1.564
A136: 73.5 | B136: 1.561
A137: 73.75 | B137: 1.558
A138: 74 | B138: 1.555
A139: 74.25 | B139: 1.552
A140: 74.5 | B140: 1.549
A141: 74.75 | B141: 1.546
A142: 75 | B142: 1.543
A143: 75.25 | B143: 1.541
A144: 75.5 | B144: 1.539
A145: 75.75 | B145: 1.536
A146: 76 | B146: 1.534
A147: 76.25 | B147: 1.531
A148: 76.5 | B148: 1.529
A149: 76.75 | B149: 1.526
A150: 77 | B150: 1.524
A151: 77.25 | B151: 1.521
A152: 77.5 | B152: 1.519
A153: 77.75 | B153: 1.517
A154: 78 | B154: 1.515
A155: 78.25 | B155: 1.512
A156: 78.5 | B156: 1.51
A157: 78.75 | B157: 1.508
A158: 79 | B158: 1.506
A159: 79.25 | B159: 1.503
A160: 79.5 | B160: 1.501
A161: 79.75 | B161: 1.499
A162: 80 | B162: 1.497
A163: 80.25 | B163: 1.494
A164: 80.5 | B164: 1.492
A165: 80.75 | B165: 1.49
A166: 81 | B166: 1.488
A167: 81.25 | B167: 1.485
A168: 81.5 | B168: 1.483
A169: 81.75 | B169: 1.481
A170: 82 | B170: 1.479
A171: 82.25 | B171: 1.477
A172: 82.5 | B172: 1.475
A173: 82.75 | B173: 1.473
A174: 83 | B174: 1.471
A175: 83.25 | B175: 1.469
A176: 83.5 | B176: 1.466
A177: 83.75 | B177: 1.464
A178: 84 | B178: 1.462
A179: 84.25 | B179: 1.46
A180: 84.5 | B180: 1.457
A181: 84.75 | B181: 1.455
A182: 85 | B182: 1.453
A183: 85.25 | B183: 1.451
A184: 85.5 | B184: 1.449
A185: 85.75 | B185: 1.447
A186: 86 | B186: 1.445
A187: 86.25 | B187: 1.443
A188: 86.5 | B188: 1.442
A189: 86.75 | B189: 1.44
A190: 87 | B190: 1.439
A191: 87.25 | B191: 1.437
A192: 87.5 | B192: 1.436
A193: 87.75 | B193: 1.434
A194: 88 | B194: 1.433
A195: 88.25 | B195: 1.431
A196: 88.5 | B196: 1.429
A197: 88.75 | B197: 1.428
A198: 89 | B198: 1.427
A199: 89.25 | B199: 1.425
A200: 89.5 | B200: 1.424
... 246 more rows

Sheet Classes
A1: Class | B1: AF | C1: WF | D1: BL | E1: Kmax | F1: Stat
A2: Men AAPF Guest | B2: 0 | C2: 1 | D2: 0 | E2: 227.5 | F2: A
A5: Men AAPF Novice | B5: 0 | C5: 1 | D5: 0 | E5: 227.5 | F5: A
A6: Men AAPF Teen | B6: 1 | C6: 1 | D6: 1 | E6: 227.5 | F6: A
A7: Men AAPF Teen 13-15 | B7: 1 | C7: 1 | D7: 1 | E7: 227.5 | F7: A
A8: Men AAPF Teen 13-15 114 1/2 | B8: 1 | C8: 1 | D8: 1 | E8: 52 | F8: A
A9: Men AAPF Teen 13-15 123 1/2 | B9: 1 | C9: 1 | D9: 1 | E9: 56 | F9: A
A10: Men AAPF Teen 13-15 132 1/4 | B10: 1 | C10: 1 | D10: 1 | E10: 60 | F10: A
A11: Men AAPF Teen 13-15 148 3/4 | B11: 1 | C11: 1 | D11: 1 | E11: 67.5 | F11: A
A12: Men AAPF Teen 13-15 165 1/4 | B12: 1 | C12: 1 | D12: 1 | E12: 75 | F12: A
A13: Men AAPF Teen 13-15 181 3/4 | B13: 1 | C13: 1 | D13: 1 | E13: 82.5 | F13: A
A14: Men AAPF Teen 13-15 198 1/4 | B14: 1 | C14: 1 | D14: 1 | E14: 90 | F14: A
A15: Men AAPF Teen 13-15 220 1/4 | B15: 1 | C15: 1 | D15: 1 | E15: 100 | F15: A
A16: Men AAPF Teen 13-15 242 1/2 | B16: 1 | C16: 1 | D16: 1 | E16: 110 | F16: A
A17: Men AAPF Teen 13-15 275 1/4 | B17: 1 | C17: 1 | D17: 1 | E17: 125 | F17: A
A18: Men AAPF Teen 13-15 308 | B18: 1 | C18: 1 | D18: 1 | E18: 140 | F18: A
A19: Men AAPF Teen 13-15 SHW | B19: 1 | C19: 1 | D19: 1 | E19: 227.5 | F19: A
A20: Men AAPF Teen 16-17 | B20: 1 | C20: 1 | D20: 1 | E20: 227.5 | F20: A
A21: Men AAPF Teen 16-17 114 1/2 | B21: 1 | C21: 1 | D21: 1 | E21: 52 | F21: A
A22: Men AAPF Teen 16-17 123 1/2 | B22: 1 | C22: 1 | D22: 1 | E22: 56 | F22: A
A23: Men AAPF Teen 16-17 132 1/4 | B23: 1 | C23: 1 | D23: 1 | E23: 60 | F23: A
A24: Men AAPF Teen 16-17 148 3/4 | B24: 1 | C24: 1 | D24: 1 | E24: 67.5 | F24: A
A25: Men AAPF Teen 16-17 165 1/4 | B25: 1 | C25: 1 | D25: 1 | E25: 75 | F25: A
A26: Men AAPF Teen 16-17 181 3/4 | B26: 1 | C26: 1 | D26: 1 | E26: 82.5 | F26: A
A27: Men AAPF Teen 16-17 198 1/4 | B27: 1 | C27: 1 | D27: 1 | E27: 90 | F27: A
A28: Men AAPF Teen 16-17 220 1/4 | B28: 1 | C28: 1 | D28: 1 | E28: 100 | F28: A
A29: Men AAPF Teen 16-17 242 1/2 | B29: 1 | C29: 1 | D29: 1 | E29: 110 | F29: A
A30: Men AAPF Teen 16-17 275 1/4 | B30: 1 | C30: 1 | D30: 1 | E30: 125 | F30: A
A31: Men AAPF Teen 16-17 308 | B31: 1 | C31: 1 | D31: 1 | E31: 140 | F31: A
A32: Men AAPF Teen 16-17 SHW | B32: 1 | C32: 1 | D32: 1 | E32: 227.5 | F32: A
A33: Men AAPF Teen 18-19 | B33: 1 | C33: 1 | D33: 1 | E33: 227.5 | F33: A
A34: Men AAPF Teen 18-19 114 1/2 | B34: 1 | C34: 1 | D34: 1 | E34: 52 | F34: A
A35: Men AAPF Teen 18-19 123 1/2 | B35: 1 | C35: 1 | D35: 1 | E35: 56 | F35: A
A36: Men AAPF Teen 18-19 132 1/4 | B36: 1 | C36: 1 | D36: 1 | E36: 60 | F36: A
A37: Men AAPF Teen 18-19 148 3/4 | B37: 1 | C37: 1 | D37: 1 | E37: 67.5 | F37: A
A38: Men AAPF Teen 18-19 165 1/4 | B38: 1 | C38: 1 | D38: 1 | E38: 75 | F38: A
A39: Men AAPF Teen 18-19 181 3/4 | B39: 1 | C39: 1 | D39: 1 | E39: 82.5 | F39: A
A40: Men AAPF Teen 18-19 198 1/4 | B40: 1 | C40: 1 | D40: 1 | E40: 90 | F40: A
A41: Men AAPF Teen 18-19 220 1/4 | B41: 1 | C41: 1 | D41: 1 | E41: 100 | F41: A
A42: Men AAPF Teen 18-19 242 1/2 | B42: 1 | C42: 1 | D42: 1 | E42: 110 | F42: A
A43: Men AAPF Teen 18-19 275 1/4 | B43: 1 | C43: 1 | D43: 1 | E43: 125 | F43: A
A44: Men AAPF Teen 18-19 308 | B44: 1 | C44: 1 | D44: 1 | E44: 140 | F44: A
A45: Men AAPF Teen 18-19 SHW | B45: 1 | C45: 1 | D45: 1 | E45: 227.5 | F45: A
A46: Men AAPF JR | B46: 1 | C46: 1 | D46: 1 | E46: 227.5 | F46: A
A47: Men AAPF JR 114 1/2 | B47: 1 | C47: 1 | D47: 1 | E47: 52 | F47: A
A48: Men AAPF JR 123 1/2 | B48: 1 | C48: 1 | D48: 1 | E48: 56 | F48: A
A49: Men AAPF JR 132 1/4 | B49: 1 | C49: 1 | D49: 1 | E49: 60 | F49: A
A50: Men AAPF JR 148 3/4 | B50: 1 | C50: 1 | D50: 1 | E50: 67.5 | F50: A
A51: Men AAPF JR 165 1/4 | B51: 1 | C51: 1 | D51: 1 | E51: 75 | F51: A
A52: Men AAPF JR 181 3/4 | B52: 1 | C52: 1 | D52: 1 | E52: 82.5 | F52: A
A53: Men AAPF JR 198 1/4 | B53: 1 | C53: 1 | D53: 1 | E53: 90 | F53: A
A54: Men AAPF JR 220 1/4 | B54: 1 | C54: 1 | D54: 1 | E54: 100 | F54: A
A55: Men AAPF JR 242 1/2 | B55: 1 | C55: 1 | D55: 1 | E55: 110 | F55: A
A56: Men AAPF JR 275 1/4 | B56: 1 | C56: 1 | D56: 1 | E56: 125 | F56: A
A57: Men AAPF JR 308 | B57: 1 | C57: 1 | D57: 1 | E57: 140 | F57: A
A58: Men AAPF JR SHW | B58: 1 | C58: 1 | D58: 1 | E58: 227.5 | F58: A
A59: Men AAPF | B59: 0 | C59: 1 | D59: 1 | E59: 227.5 | F59: A
A60: Men AAPF 114 1/2 | B60: 0 | C60: 1 | D60: 1 | E60: 52 | F60: A
A61: Men AAPF 123 1/2 | B61: 0 | C61: 1 | D61: 1 | E61: 56 | F61: A
A62: Men AAPF 132 1/4 | B62: 0 | C62: 1 | D62: 1 | E62: 60 | F62: A
A63: Men AAPF 148 3/4 | B63: 0 | C63: 1 | D63: 1 | E63: 67.5 | F63: A
A64: Men AAPF 165 1/4 | B64: 0 | C64: 1 | D64: 1 | E64: 75 | F64: A
A65: Men AAPF 181 3/4 | B65: 0 | C65: 1 | D65: 1 | E65: 82.5 | F65: A
A66: Men AAPF 198 1/4 | B66: 0 | C66: 1 | D66: 1 | E66: 90 | F66: A
A67: Men AAPF 220 1/4 | B67: 0 | C67: 1 | D67: 1 | E67: 100 | F67: A
A68: Men AAPF 242 1/2 | B68: 0 | C68: 1 | D68: 1 | E68: 110 | F68: A
A69: Men AAPF 275 1/4 | B69: 0 | C69: 1 | D69: 1 | E69: 125 | F69: A
A70: Men AAPF 308 | B70: 0 | C70: 1 | D70: 1 | E70: 140 | F70: A
A71: Men AAPF SHW | B71: 0 | C71: 1 | D71: 1 | E71: 227.5 | F71: A
A72: Men AAPF SubMaster | B72: 0 | C72: 0 | D72: 1 | E72: 227.5 | F72: A
A73: Men AAPF SubMaster 114 1/2 | B73: 0 | C73: 0 | D73: 1 | E73: 52 | F73: A
A74: Men AAPF SubMaster 123 1/2 | B74: 0 | C74: 0 | D74: 1 | E74: 56 | F74: A
A75: Men AAPF SubMaster 132 1/4 | B75: 0 | C75: 0 | D75: 1 | E75: 60 | F75: A
A76: Men AAPF SubMaster 148 3/4 | B76: 0 | C76: 0 | D76: 1 | E76: 67.5 | F76: A
A77: Men AAPF SubMaster 165 1/4 | B77: 0 | C77: 0 | D77: 1 | E77: 75 | F77: A
A78: Men AAPF SubMaster 181 3/4 | B78: 0 | C78: 0 | D78: 1 | E78: 82.5 | F78: A
A79: Men AAPF SubMaster 198 1/4 | B79: 0 | C79: 0 | D79: 1 | E79: 90 | F79: A
A80: Men AAPF SubMaster 220 1/4 | B80: 0 | C80: 0 | D80: 1 | E80: 100 | F80: A
A81: Men AAPF SubMaster 242 1/2 | B81: 0 | C81: 0 | D81: 1 | E81: 110 | F81: A
A82: Men AAPF SubMaster 275 1/4 | B82: 0 | C82: 0 | D82: 1 | E82: 125 | F82: A
A83: Men AAPF SubMaster 308 | B83: 0 | C83: 0 | D83: 1 | E83: 140 | F83: A
A84: Men AAPF SubMaster SHW | B84: 0 | C84: 0 | D84: 1 | E84: 227.5 | F84: A
A85: Men AAPF Master | B85: 1 | C85: 1 | D85: 1 | E85: 227.5 | F85: A
A86: Men AAPF Master (40-49) | B86: 1 | C86: 1 | D86: 1 | E86: 227.5 | F86: A
A87: Men AAPF Master (50+) | B87: 1 | C87: 1 | D87: 1 | E87: 227.5 | F87: A
A88: Men AAPF Master 40-44 | B88: 1 | C88: 1 | D88: 1 | E88: 227.5 | F88: A
A89: Men AAPF Master 40-44 114 1/2 | B89: 1 | C89: 1 | D89: 1 | E89: 52 | F89: A
A90: Men AAPF Master 40-44 123 1/2 | B90: 1 | C90: 1 | D90: 1 | E90: 56 | F90: A
A91: Men AAPF Master 40-44 132 1/4 | B91: 1 | C91: 1 | D91: 1 | E91: 60 | F91: A
A92: Men AAPF Master 40-44 148 3/4 | B92: 1 | C92: 1 | D92: 1 | E92: 67.5 | F92: A
A93: Men AAPF Master 40-44 165 1/4 | B93: 1 | C93: 1 | D93: 1 | E93: 75 | F93: A
A94: Men AAPF Master 40-44 181 3/4 | B94: 1 | C94: 1 | D94: 1 | E94: 82.5 | F94: A
A95: Men AAPF Master 40-44 198 1/4 | B95: 1 | C95: 1 | D95: 1 | E95: 90 | F95: A
A96: Men AAPF Master 40-44 220 1/4 | B96: 1 | C96: 1 | D96: 1 | E96: 100 | F96: A
A97: Men AAPF Master 40-44 242 1/2 | B97: 1 | C97: 1 | D97: 1 | E97: 110 | F97: A
A98: Men AAPF Master 40-44 275 1/4 | B98: 1 | C98: 1 | D98: 1 | E98: 125 | F98: A
A99: Men AAPF Master 40-44 308 | B99: 1 | C99: 1 | D99: 1 | E99: 140 | F99: A
A100: Men AAPF Master 40-44 SHW | B100: 1 | C100: 1 | D100: 1 | E100: 227.5 | F100: A
A101: Men AAPF Master 45-49 | B101: 1 | C101: 1 | D101: 1 | E101: 227.5 | F101: A
A102: Men AAPF Master 45-49 114 1/2 | B102: 1 | C102: 1 | D102: 1 | E102: 52 | F102: A
A103: Men AAPF Master 45-49 123 1/2 | B103: 1 | C103: 1 | D103: 1 | E103: 56 | F103: A
A104: Men AAPF Master 45-49 132 1/4 | B104: 1 | C104: 1 | D104: 1 | E104: 60 | F104: A
A105: Men AAPF Master 45-49 148 3/4 | B105: 1 | C105: 1 | D105: 1 | E105: 67.5 | F105: A
A106: Men AAPF Master 45-49 165 1/4 | B106: 1 | C106: 1 | D106: 1 | E106: 75 | F106: A
A107: Men AAPF Master 45-49 181 3/4 | B107: 1 | C107: 1 | D107: 1 | E107: 82.5 | F107: A
A108: Men AAPF Master 45-49 198 1/4 | B108: 1 | C108: 1 | D108: 1 | E108: 90 | F108: A
A109: Men AAPF Master 45-49 220 1/4 | B109: 1 | C109: 1 | D109: 1 | E109: 100 | F109: A
A110: Men AAPF Master 45-49 242 1/2 | B110: 1 | C110: 1 | D110: 1 | E110: 110 | F110: A
A111: Men AAPF Master 45-49 275 1/4 | B111: 1 | C111: 1 | D111: 1 | E111: 125 | F111: A
A112: Men AAPF Master 45-49 308 | B112: 1 | C112: 1 | D112: 1 | E112: 140 | F112: A
A113: Men AAPF Master 45-49 SHW | B113: 1 | C113: 1 | D113: 1 | E113: 227.5 | F113: A
A114: Men AAPF Master 50-54 | B114: 1 | C114: 1 | D114: 1 | E114: 227.5 | F114: A
A115: Men AAPF Master 50-54 114 1/2 | B115: 1 | C115: 1 | D115: 1 | E115: 52 | F115: A
A116: Men AAPF Master 50-54 123 1/2 | B116: 1 | C116: 1 | D116: 1 | E116: 56 | F116: A
A117: Men AAPF Master 50-54 132 1/4 | B117: 1 | C117: 1 | D117: 1 | E117: 60 | F117: A
A118: Men AAPF Master 50-54 148 3/4 | B118: 1 | C118: 1 | D118: 1 | E118: 67.5 | F118: A
A119: Men AAPF Master 50-54 165 1/4 | B119: 1 | C119: 1 | D119: 1 | E119: 75 | F119: A
A120: Men AAPF Master 50-54 181 3/4 | B120: 1 | C120: 1 | D120: 1 | E120: 82.5 | F120: A
A121: Men AAPF Master 50-54 198 1/4 | B121: 1 | C121: 1 | D121: 1 | E121: 90 | F121: A
A122: Men AAPF Master 50-54 220 1/4 | B122: 1 | C122: 1 | D122: 1 | E122: 100 | F122: A
A123: Men AAPF Master 50-54 242 1/2 | B123: 1 | C123: 1 | D123: 1 | E123: 110 | F123: A
A124: Men AAPF Master 50-54 275 1/4 | B124: 1 | C124: 1 | D124: 1 | E124: 125 | F124: A
A125: Men AAPF Master 50-54 308 | B125: 1 | C125: 1 | D125: 1 | E125: 140 | F125: A
A126: Men AAPF Master 50-54 SHW | B126: 1 | C126: 1 | D126: 1 | E126: 227.5 | F126: A
A127: Men AAPF Master 55-59 | B127: 1 | C127: 1 | D127: 1 | E127: 227.5 | F127: A
A128: Men AAPF Master 55-59 114 1/2 | B128: 1 | C128: 1 | D128: 1 | E128: 52 | F128: A
A129: Men AAPF Master 55-59 123 1/2 | B129: 1 | C129: 1 | D129: 1 | E129: 56 | F129: A
A130: Men AAPF Master 55-59 132 1/4 | B130: 1 | C130: 1 | D130: 1 | E130: 60 | F130: A
A131: Men AAPF Master 55-59 148 3/4 | B131: 1 | C131: 1 | D131: 1 | E131: 67.5 | F131: A
A132: Men AAPF Master 55-59 165 1/4 | B132: 1 | C132: 1 | D132: 1 | E132: 75 | F132: A
A133: Men AAPF Master 55-59 181 3/4 | B133: 1 | C133: 1 | D133: 1 | E133: 82.5 | F133: A
A134: Men AAPF Master 55-59 198 1/4 | B134: 1 | C134: 1 | D134: 1 | E134: 90 | F134: A
A135: Men AAPF Master 55-59 220 1/4 | B135: 1 | C135: 1 | D135: 1 | E135: 100 | F135: A
A136: Men AAPF Master 55-59 242 1/2 | B136: 1 | C136: 1 | D136: 1 | E136: 110 | F136: A
A137: Men AAPF Master 55-59 275 1/4 | B137: 1 | C137: 1 | D137: 1 | E137: 125 | F137: A
A138: Men AAPF Master 55-59 308 | B138: 1 | C138: 1 | D138: 1 | E138: 140 | F138: A
A139: Men AAPF Master 55-59 SHW | B139: 1 | C139: 1 | D139: 1 | E139: 227.5 | F139: A
A140: Men AAPF Master 60-64 | B140: 1 | C140: 1 | D140: 1 | E140: 227.5 | F140: A
A141: Men AAPF Master 60-64 114 1/2 | B141: 1 | C141: 1 | D141: 1 | E141: 52 | F141: A
A142: Men AAPF Master 60-64 123 1/2 | B142: 1 | C142: 1 | D142: 1 | E142: 56 | F142: A
A143: Men AAPF Master 60-64 132 1/4 | B143: 1 | C143: 1 | D143: 1 | E143: 60 | F143: A
A144: Men AAPF Master 60-64 148 3/4 | B144: 1 | C144: 1 | D144: 1 | E144: 67.5 | F144: A
A145: Men AAPF Master 60-64 165 1/4 | B145: 1 | C145: 1 | D145: 1 | E145: 75 | F145: A
A146: Men AAPF Master 60-64 181 3/4 | B146: 1 | C146: 1 | D146: 1 | E146: 82.5 | F146: A
A147: Men AAPF Master 60-64 198 1/4 | B147: 1 | C147: 1 | D147: 1 | E147: 90 | F147: A
A148: Men AAPF Master 60-64 220 1/4 | B148: 1 | C148: 1 | D148: 1 | E148: 100 | F148: A
A149: Men AAPF Master 60-64 242 1/2 | B149: 1 | C149: 1 | D149: 1 | E149: 110 | F149: A
A150: Men AAPF Master 60-64 275 1/4 | B150: 1 | C150: 1 | D150: 1 | E150: 125 | F150: A
A151: Men AAPF Master 60-64 308 | B151: 1 | C151: 1 | D151: 1 | E151: 140 | F151: A
A152: Men AAPF Master 60-64 SHW | B152: 1 | C152: 1 | D152: 1 | E152: 227.5 | F152: A
A153: Men AAPF Master 65-69 | B153: 1 | C153: 1 | D153: 1 | E153: 227.5 | F153: A
A154: Men AAPF Master 65-69 114 1/2 | B154: 1 | C154: 1 | D154: 1 | E154: 52 | F154: A
A155: Men AAPF Master 65-69 123 1/2 | B155: 1 | C155: 1 | D155: 1 | E155: 56 | F155: A
A156: Men AAPF Master 65-69 132 1/4 | B156: 1 | C156: 1 | D156: 1 | E156: 60 | F156: A
A157: Men AAPF Master 65-69 148 3/4 | B157: 1 | C157: 1 | D157: 1 | E157: 67.5 | F157: A
A158: Men AAPF Master 65-69 165 1/4 | B158: 1 | C158: 1 | D158: 1 | E158: 75 | F158: A
A159: Men AAPF Master 65-69 181 3/4 | B159: 1 | C159: 1 | D159: 1 | E159: 82.5 | F159: A
A160: Men AAPF Master 65-69 198 1/4 | B160: 1 | C160: 1 | D160: 1 | E160: 90 | F160: A
A161: Men AAPF Master 65-69 220 1/4 | B161: 1 | C161: 1 | D161: 1 | E161: 100 | F161: A
A162: Men AAPF Master 65-69 242 1/2 | B162: 1 | C162: 1 | D162: 1 | E162: 110 | F162: A
A163: Men AAPF Master 65-69 275 1/4 | B163: 1 | C163: 1 | D163: 1 | E163: 125 | F163: A
A164: Men AAPF Master 65-69 308 | B164: 1 | C164: 1 | D164: 1 | E164: 140 | F164: A
A165: Men AAPF Master 65-69 SHW | B165: 1 | C165: 1 | D165: 1 | E165: 227.5 | F165: A
A166: Men AAPF Master 70-74 | B166: 1 | C166: 1 | D166: 1 | E166: 227.5 | F166: A
A167: Men AAPF Master 70-74 114 1/2 | B167: 1 | C167: 1 | D167: 1 | E167: 52 | F167: A
A168: Men AAPF Master 70-74 123 1/2 | B168: 1 | C168: 1 | D168: 1 | E168: 56 | F168: A
A169: Men AAPF Master 70-74 132 1/4 | B169: 1 | C169: 1 | D169: 1 | E169: 60 | F169: A
A170: Men AAPF Master 70-74 148 3/4 | B170: 1 | C170: 1 | D170: 1 | E170: 67.5 | F170: A
A171: Men AAPF Master 70-74 165 1/4 | B171: 1 | C171: 1 | D171: 1 | E171: 75 | F171: A
A172: Men AAPF Master 70-74 181 3/4 | B172: 1 | C172: 1 | D172: 1 | E172: 82.5 | F172: A
A173: Men AAPF Master 70-74 198 1/4 | B173: 1 | C173: 1 | D173: 1 | E173: 90 | F173: A
A174: Men AAPF Master 70-74 220 1/4 | B174: 1 | C174: 1 | D174: 1 | E174: 100 | F174: A
A175: Men AAPF Master 70-74 242 1/2 | B175: 1 | C175: 1 | D175: 1 | E175: 110 | F175: A
A176: Men AAPF Master 70-74 275 1/4 | B176: 1 | C176: 1 | D176: 1 | E176: 125 | F176: A
A177: Men AAPF Master 70-74 308 | B177: 1 | C177: 1 | D177: 1 | E177: 140 | F177: A
A178: Men AAPF Master 70-74 SHW | B178: 1 | C178: 1 | D178: 1 | E178: 227.5 | F178: A
A179: Men AAPF Master 75-79 | B179: 1 | C179: 1 | D179: 1 | E179: 227.5 | F179: A
A180: Men AAPF Master 75-79 114 1/2 | B180: 1 | C180: 1 | D180: 1 | E180: 52 | F180: A
A181: Men AAPF Master 75-79 123 1/2 | B181: 1 | C181: 1 | D181: 1 | E181: 56 | F181: A
A182: Men AAPF Master 75-79 132 1/4 | B182: 1 | C182: 1 | D182: 1 | E182: 60 | F182: A
A183: Men AAPF Master 75-79 148 3/4 | B183: 1 | C183: 1 | D183: 1 | E183: 67.5 | F183: A
A184: Men AAPF Master 75-79 165 1/4 | B184: 1 | C184: 1 | D184: 1 | E184: 75 | F184: A
A185: Men AAPF Master 75-79 181 3/4 | B185: 1 | C185: 1 | D185: 1 | E185: 82.5 | F185: A
A186: Men AAPF Master 75-79 198 1/4 | B186: 1 | C186: 1 | D186: 1 | E186: 90 | F186: A
A187: Men AAPF Master 75-79 220 1/4 | B187: 1 | C187: 1 | D187: 1 | E187: 100 | F187: A
A188: Men AAPF Master 75-79 242 1/2 | B188: 1 | C188: 1 | D188: 1 | E188: 110 | F188: A
A189: Men AAPF Master 75-79 275 1/4 | B189: 1 | C189: 1 | D189: 1 | E189: 125 | F189: A
A190: Men AAPF Master 75-79 308 | B190: 1 | C190: 1 | D190: 1 | E190: 140 | F190: A
A191: Men AAPF Master 75-79 SHW | B191: 1 | C191: 1 | D191: 1 | E191: 227.5 | F191: A
A192: Men AAPF Master 80-84 | B192: 1 | C192: 1 | D192: 1 | E192: 227.5 | F192: A
A193: Men AAPF Master 80-84 114 1/2 | B193: 1 | C193: 1 | D193: 1 | E193: 52 | F193: A
A194: Men AAPF Master 80-84 123 1/2 | B194: 1 | C194: 1 | D194: 1 | E194: 56 | F194: A
A195: Men AAPF Master 80-84 132 1/4 | B195: 1 | C195: 1 | D195: 1 | E195: 60 | F195: A
A196: Men AAPF Master 80-84 148 3/4 | B196: 1 | C196: 1 | D196: 1 | E196: 67.5 | F196: A
A197: Men AAPF Master 80-84 165 1/4 | B197: 1 | C197: 1 | D197: 1 | E197: 75 | F197: A
A198: Men AAPF Master 80-84 181 3/4 | B198: 1 | C198: 1 | D198: 1 | E198: 82.5 | F198: A
A199: Men AAPF Master 80-84 198 1/4 | B199: 1 | C199: 1 | D199: 1 | E199: 90 | F199: A
A200: Men AAPF Master 80-84 220 1/4 | B200: 1 | C200: 1 | D200: 1 | E200: 100 | F200: A
A201: Men AAPF Master 80-84 242 1/2 | B201: 1 | C201: 1 | D201: 1 | E201: 110 | F201: A
A202: Men AAPF Master 80-84 275 1/4 | B202: 1 | C202: 1 | D202: 1 | E202: 125 | F202: A
... 477 more rows

Sheet Div legend
A1: Divisions
A3: Abbrev | B3: Description | C3: Scoring
A4: M-Nov | B4: Men's Novice | C4: 1
A5: M-T2ST | B5: T(16-17) Single Tested | C5: 1
A6: M-T3RT | B6: T(18-19) Raw Tested | C6: 1
A7: M-M3R | B7: M(50-54) Raw | C7: 1
A8: M-M3RT | B8: M(50-54) Raw Tested | C8: 1
A9: M-M4RT | B9: M(55-59) Raw Tested | C9: 1
A10: M-M3R | B10: M(40-44) Raw | C10: 1
A11: M-M2RT | B11: M(45-49) Raw Tested | C11: 1
A12: M-M1RT | B12: M(40-44) Raw Tested | C12: 1
A13: M-OR | B13: Men's Open Raw | C13: 1
A14: M-ORT | B14: Men's Open Raw Tested | C14: 1
A15: M-OS | B15: Open Single Ply | C15: 1
A16: M-OST | B16: Open Single Ply Tested | C16: 1
A17: M-SM S | B17: SubM Single Ply | C17: 1
A18: M-SMST | B18: SubM Single Ply Tested | C18: 1
A19: M-M4M | B19: M(55-59) Multi Ply | C19: 1
A20: M-OM | B20: Open Multi Ply | C20: 1
A21: F-Nov | B21: Women's Novice | C21: 1
A22: F-OR | B22: Women's Open Raw | C22: 1
A23: F-ORT | B23: W Open Raw Tested | C23: 1
A24: F-JRT | B24: WJunior Raw Tested | C24: 1
A25: F-M1RT | B25: W M(40-44) Raw Tested | C25: 1
A26: M-JRT | B26: Men's Junior Raw Tested | C26: 1
A27: M-M4MT | B27: Men's M(55-59)Multi Tested | C27: 1
A28: M-M1R | B28: M(45-49) Raw
A29: M-M2R | B29: M (55-59) Raw
A30: F-M1R | B30: W M(40-44) Raw
A31: M-T3R | B31: T(18-19) Raw
A32: F-M2RT | B32: W Sub M (33-39) Raw
A33: M-SM2T | B33: M Sub M (33-39) RawTested
A34: M-SM2R | B34: M Sub M (33-39) Raw
A35: M-T4RT | B35: T(13-15) Raw Tested
A36: M-R | B36: Mens (20-24) Raw

Sheet Module1 (hidden)

Sheet Sheet1
